Workbook

Sheet PORTADA
B2: 14896532
B12: www.acfmsc.com
B13: 14896532
R88: LEN2285
R93: LEN2285

Sheet MENU (hidden)
B5: Descripción | C5: Nombre de la hoja
B6: Importar XML de nómina | C6: NOMINA
B7: Determinación del aniversario del trabajador | C7: ANIVERSARIO
B8: Disposiciones para determinar el SBC | C8: FSBC
B9: Determinación del salario base de cotización | C9: SBC
B10: Determinación del salario diario integrado | C10: SDI
B11: Determinación de la retención del IMSS | C11: RIMSS
B12: Retención de ISR e IMSS | C12: RISR_IMSS
B13: Determinación de la cuota obrero patronal MENSUAL | C13: EMISIONM
B14: Determinación de la cuota obrero patronal BIMESTRAL | C14: EMISIONB
B15: Resumen cuotas obrego patronales | C15: RESUMEN IMSS
B16: Determinación de diferencias | C16: CEDULA
B17: Tarifa ISR 2025 | C17: TARIFA
B18: Datos generales para los cálculos | C18: GENERALES1

Sheet NOMINA (hidden)
AD1: =IF(AND(AA6>=2,AA6<=4,AE6>=1,AE6<=8),0,1) -> 1
AZ4: Venta acciones | BB4: Tiempo extra | BF4: Jubilaciones, pensiones, retiro | BK4: Pagos por separación | BP4: Incapacidades
B5: Fecha de emisión | C5: Fecha de timbrado | D5: UUID | E5: Concepto | F5: Serie | G5: Folio | H5: Forma de pago | I5: Metodo de pago | J5: Moneda | K5: Registro patronal | L5: Nombre del patron | M5: Riesgo de puesto | N5: Concepto riesgo de puesto (este dato no pertenece al XML) | O5: No. De empleado | P5: Nombre del empleado | Q5: Departamento | R5: Puesto | S5: Clave de la entidad federrativa | T5: Estado (este dato no pertenece al XML) | U5: CURP | V5: RFC | W5: No. SS | X5: Fecha inicio relación laboral | Y5: Salario diario integrado | Z5: Salario base de cotización | AA5: Tipo de regimen | AB5: Tipo de régimen (este dato no pertenece al XML) | AC5: Tipo de jornada | AD5: Tipo de jornada (este dato no pertenece al XML) | AE5: Tipo de contrato | AF5: Tipo de contrato (este dato no pertenece al XML) | AG5: Antigüedad | AH5: Fecha inicial pago | AI5: Fecha final pago | AJ5: Fecha de pago | AK5: Periodicidad de pago | AL5: Periodicidad de pago (este dato no pertenece al XML) | AM5: Clave de percepción | AN5: Percepción | AO5: Percepción de acuerdo al catálogo del SAT (este dato no pertenece al XML) | AP5: Percepción exenta | AQ5: Percepción gravado | AR5: Clave de deducción | AS5: Deducción | AT5: Deducción de acuerdo al catálogo del SAT (este dato no pertenece al XML) | AU5: Importe deducción | AV5: Total del comprobante | AW5: Tipo de relación | AX5: UUID tipo de relación | AY5: Subsidio al empleo causado | AZ5: Valor de mercado | BA5: Precio al otorgarse | BB5: Días | BC5: Tipo de horas | BD5: Horas extras | BE5: Importe pagado | BF5: Total en una sola exhibición | BG5: Total parcialidad | BH5: Monto diario | BI5: Ingreso acumulable | BJ5: Ingreso no acumulable | BK5: Total pagado | BL5: No. de años de servicio | BM5: Último sueldo mensual ordinario | BN5: Ingreso acumulable | BO5: Ingreso no acumulable | BP5: Días de incapacidad | BQ5: Tipo de incapacidad | BR5: Importe monetario | BS5: Dìas pagados | BT5: Ruta

Sheet ANIVERSARIO (hidden)
B2: Determinación del factor de integración en partes fijas (antes de generar el reporte capture información en las celdas y columnas de color verde)
B4: Fecha inicial de pago
B5: Fecha final de pago
B6: Fecha de cálculo del aniversario
B7: Días de aguinaldo
B8: % Prima vacacional
H10: Factor de integración

Sheet FSBC (hidden)
B2: Solo capture información en las celdas de color verde
E5: Valor de la UMA | F5: 117.31
E6: Salario diario del trabajador | F6: 380
B7: Artículo 27 LSS. El salario base de cotización se integra con los pagos hechos en efectivo por cuota diaria, gratificaciones, percepciones, alimentación, habitación, primas, comisiones, prestaciones en especie y cualquiera otra cantidad o prestación que se entregue al trabajador por su trabajo. Se excluyen como integrantes del salario base de cotización, dada su naturaleza, los siguientes conceptos:
B8: I. Los instrumentos de trabajo tales como herramientas, ropa y otros similares | F8: https://dof.gob.mx/nota_detalle.php?codigo=5721189&fecha=22/03/2024#gsc.tab=0
B9: II. El ahorro, cuando se integre por un depósito de cantidad semanaria, quincenal o mensual igual del trabajador y de la empresa; si se constituye en forma diversa o puede el trabajador retirarlo más de dos veces al año, integrará salario; tampoco se tomarán en cuenta las cantidades otorgadas por el patrón para fines sociales de carácter sindical.
B10: Artículo 93 LISR. No se pagará el impuesto sobre la renta por la obtención de los siguientes ingresos: XI. Los provenientes de cajas de ahorro de trabajadores y de fondos de ahorro establecidos por las empresas para sus trabajadores cuando reúnan los requisitos de deducibilidad del Título II de esta Ley o, en su caso, del presente Título. Requisitos. Que sean otorgados en forma general a todos los trabajadores El monto del patrón tiene que ser igual a la aportación de los trabajadores No exceder del 13% del salario del trabajador Con un límite del 1.3 veces del valor de la UMA elevada al año Fundamento: Artículo 27 fracción XI LISR
B11: III. Las aportaciones adicionales que el patrón convenga otorgar a favor de sus trabajadores por concepto de cuotas del seguro de retiro, cesantía en edad avanzada y vejez.
B12: IV. Las cuotas que en términos de esta Ley le corresponde cubrir al patrón, las aportaciones al Instituto del Fondo Nacional de la Vivienda para los Trabajadores, y las participaciones en las utilidades de la empresa; | F12: https://dof.gob.mx/nota_detalle.php?codigo=5694775&fecha=07/07/2023#gsc.tab=0
B13: Artículo 36 LSS. Corresponde al patrón pagar íntegramente la cuota señalada para los trabajadores, en los casos en que éstos perciban como cuota diaria el salario mínimo.
B14: Artículo 29 LINFONAVIT.- Son obligaciones de los patrones: II.- Determinar el monto de las aportaciones del cinco por ciento sobre el salario de los trabajadores a su servicio y efectuar el pago en las entidades receptoras que actúen por cuenta y orden del Instituto, para su abono en la subcuenta de vivienda de las cuentas individuales de los trabajadores previstas en los sistemas de ahorro para el retiro, en los términos de la presente Ley y sus reglamentos, así como en lo conducente, conforme a lo previsto en la Ley del Seguro Social y en la Ley Federal del Trabajo. En lo que corresponde a la integración y cálculo de la base y límite superior salarial para el pago de aportaciones, se aplicará lo contenido en la Ley del Seguro Social. Estas aportaciones son gastos de previsión de las empresas y forman parte del patrimonio de los trabajadores. ......................................
B15: V. La alimentación y la habitación cuando se entreguen en forma onerosa a los trabajadores; se entiende que son onerosas estas prestaciones cuando el trabajador pague por cada una de ellas, como mínimo, el veinte por ciento del salario mínimo general diario que rija en el Distrito Federal | F15: =IF(F5<>"","Se debe de cobrar por lo menos $"&ROUND(F5*0.2,2),"") -> Se debe de cobrar por lo menos $23.46 | G15: https://dof.gob.mx/nota_detalle.php?codigo=5733018&fecha=11/07/2024#gsc.tab=0
E16: ¿Cuántos alimentos se le dan al trabajador? | F16: 3
E17: =IF(F16<>"","¿Cuanto paga el trabajador por el alimento?","") -> ¿Cuanto paga el trabajador por el alimento? | F17: 22.63
E18: =IF(AND(F16<>"",F17<>""),IF(AND(F16=1,F17<ROUND(F5*0.2,2)),"Se integra al salario el 8.33% del salario ordinario",IF(AND(F16=2,F17<ROUND(F5*0.2,2)),"Se integra al salario el 16.66% del salario ordinario",IF(AND(F16=3,F17<ROUND(F5*0.2,2)),"Se integra al salario el 25% del salario ordinario",""))),"") -> Se integra al salario el 25% del salario ordinario | F18: =IF(AND(F16<>"",F17<>""),IF(AND(F16=1,F17<ROUND(F5*0.2,2)),ROUND(F6*8.33%,2),IF(AND(F16=2,F17<ROUND(F5*0.2,2)),ROUND(F6*16.66%,2),IF(AND(F16=3,F17<ROUND(F5*0.2,2)),ROUND(F6*25%,2),""))),"") -> 95
B19: Artículo 32 LSS. Si además del salario en dinero el trabajador recibe del patrón, sin costo para aquél, habitación o alimentación, se estimará aumentado su salario en un veinticinco por ciento y si recibe ambas prestaciones se aumentará en un cincuenta por ciento. Cuando la alimentación no cubra los tres alimentos, sino uno o dos de éstos, por cada uno de ellos se adicionará el salario en un ocho punto treinta y tres por ciento.
B20: Artículo 344 LFT.- Las disposiciones de este capítulo se aplican a los trabajadores en hoteles, casas de asistencia, restaurantes, fondas, cafés, bares y otros establecimientos análogos. Artículo 348 LFT.- La alimentación que se proporcione a los trabajadores deberá ser sana, abundante y nutritiva.
B21: VI. Las despensas en especie o en dinero, siempre y cuando su importe no rebase el cuarenta por ciento del salario mínimo general diario vigente en el Distrito Federal | F21: =IF(F5<>"","El importe máximo es de $"&ROUND(F5*0.4,2),"") -> El importe máximo es de $46.92
E22: ¿Importe diario que se le entrega al trabajador? | F22: 50
E23: =IF(F22<>"","Parte que integra","") -> Parte que integra | F23: =IFERROR(IF(F22<>"",IF(AND(F22<>"",F22>ROUND(F5*0.4,2)),F22-ROUND(F5*0.4,2),0),""),"") -> 3.08
E24: =IF(F22<>"","Parte que no integra","") -> Parte que no integra | F24: =IFERROR(IF(F22<>"",IF(F22>=ROUND(F5*0.4,2),ROUND(F5*0.4,2),F22),""),"") -> 46.92
B25: VII. Los premios por asistencia y puntualidad, siempre que el importe de cada uno de estos conceptos no rebase el diez por ciento del salario base de cotización | F25: https://dof.gob.mx/nota_detalle.php?codigo=5744811&fecha=10/12/2024#gsc.tab=0
B26: VIII. Las cantidades aportadas para fines sociales, considerándose como tales las entregadas para constituir fondos de algún plan de pensiones establecido por el patrón o derivado de contratación colectiva. Los planes de pensiones serán sólo los que reúnan los requisitos que establezca la Comisión Nacional del Sistema de Ahorro para el Retiro, y | F26: https://dof.gob.mx/nota_detalle.php?codigo=5691515&fecha=08/06/2023#gsc.tab=0
B27: IX. El tiempo extraordinario dentro de los márgenes señalados en la Ley Federal del Trabajo.
B28: Artículo 66 LFT.- Podrá también prolongarse la jornada de trabajo por circunstancias extraordinarias, sin exceder nunca de tres horas diarias ni de tres veces en una semana.
B29: Para que los conceptos mencionados en este precepto se excluyan como integrantes del salario base de cotización, deberán estar debidamente registrados en la contabilidad del patrón. En los conceptos previstos en las fracciones VI, VII y IX cuando el importe de estas prestaciones rebase el porcentaje establecido, solamente se integrarán los excedentes al salario base de cotización.

Sheet SBC (hidden)
B5: Plantilla para Determinar el Salario Base de Cotización (SBC) - México
B7: Fecha de cálculo
B9: 1) Entradas (editar celdas con relleno de color verde)
B11: Fecha de ingreso | F11: Otras prestaciones fijas prviamente conocidas
B12: Fecha de cálculo | G12: Patrón | H12: Trabajador
B13: Días devengados del bimestre a cálcular (en su caso) | F13: % Fondo de ahorro | I13: =IFERROR(IF(G13=H13,"No integra al SBC","Integra $"&ROUND(D14*G13,2)),"") -> No integra al SBC
B14: Salario diario pactado (SD) | F14: Habitación | H14: =IF(G14="Sí","Cobro al trabajador","") ->  | J14: =IFERROR(IF(H14<>"",IF(I14>=ROUND(D20*0.2,2),"No integra","Integra "&TEXT(0.25,"0%")&" del salario"),""),"") -> 
B15: Aguinaldo (días por año) | F15: Alimentación que se otorga | H15: =IFERROR(IF(G15<>"","Cobro al trabajador",""),"") ->  | I15: 20
B16: Vacaciones (días por año) | D16: =IFERROR(VLOOKUP(VALUE(DATEDIF(D11,D12,"y")&"."&DATEDIF(D11,D12,"YM")&DATEDIF(D11,D12,"MD")),TABLAV,3),"") -> 12 | F16: Despensa otrogada $ | H16: =IFERROR(IF(G16<>"",IF(G16>ROUND(D20*0.4,2),"Integra $"&ROUND(G16-(D20*0.4),2),""),""),"") -> 
B17: Prima vacacional (%)
B18: Zona del salario mínimo
B19: Salario mínimo | D19: =IFERROR(VLOOKUP(D18,ZONAS,2,FALSE),"") -> 
B20: UMA diaria (ingrese la vigente)
B22: 2) Cálculos
B24: Factor de integración (FI) por prestaciones mínimas: | D24: =IFERROR(ROUND(1+(D15/365)+(D16/365*D17),4),"") -> 1
B25: Salario fijo integrado diario (SDI fijo) = SD × FI | D25: =IFERROR(ROUND(D14*D24,2),"") -> 0
B26: Fondo de ahorro | D26: =IFERROR(I13,"") -> No integra al SBC
B27: Habitación | D27: =IFERROR(IF(J14<>"",ROUND(D14*0.25,2),0),0) -> 0
B28: Alimentación | D28: =IFERROR(IF(I15<ROUND(D20*0.2,2),IF(G15=1,ROUND(D14*0.0833,2),IF(G15=2,ROUND(D14*0.1666,2),ROUND(D14*0.25,2))),0),"") -> 0
B29: Despensa | D29: =IFERROR(IF(G16>ROUND(D20*0.4,2),ROUND(G16-D20*0.4,2),0),"") -> 0
B30: =IFERROR(IF(ISODD(MONTH(D7)),"(+) Variables del bimestre anterior ("&TEXT(EOMONTH(D7,-2),"mmmm")&"-"&TEXT(EOMONTH(D7,-1),"mmmm")& " " & IF(MONTH(D7)=1,YEAR(D7)-1,YEAR(D7))&")",""),"") -> 
B31: =IF($B$30<>"","Premio de puntualidad " &TEXT(EOMONTH($D$7,-2),"mmmm"),"") -> 
B32: =IF($B$30<>"","Premio de puntualidad " &TEXT(EOMONTH($D$7,-1),"mmmm"),"") ->  | D32: =IFERROR(IF(ROUND((C31+C32)/$D$13,2)>=(SUMIF($D$25:$D$29,">0")*0.1),ROUND(((C31+C32)/$D$13)-(SUMIF($D$25:$D$29,">0")*0.1),2),""),"") -> 
B33: =IF($B$30<>"","Premio de asistencia " &TEXT(EOMONTH($D$7,-2),"mmmm"),"") -> 
B34: =IF($B$30<>"","Premio de asistencia " &TEXT(EOMONTH($D$7,-1),"mmmm"),"") ->  | D34: =IFERROR(IF(ROUND((C33+C34)/$D$13,2)>=(SUMIF($D$25:$D$29,">0")*0.1),ROUND(((C33+C34)/$D$13)-(SUMIF($D$25:$D$29,">0")*0.1),2),""),"") -> 
B35: =IF($B$30<>"","Comisiones " &TEXT(EOMONTH($D$7,-2),"mmmm"),"") -> 
B36: =IF($B$30<>"","Comisiones " &TEXT(EOMONTH($D$7,-1),"mmmm"),"") ->  | D36: =IFERROR(IF(B30<>"",ROUND((C35+C36)/$D$13,2),""),"") -> 
B37: =IF($B$30<>"","Otros " &TEXT(EOMONTH($D$7,-2),"mmmm"),"") -> 
B38: =IF($B$30<>"","Otros " &TEXT(EOMONTH($D$7,-1),"mmmm"),"") ->  | D38: =IFERROR(IF(B30<>"",ROUND((C37+C38)/$D$13,2),""),"") -> 
B39: (=) Salario base de cotización | D39: =IFERROR(SUMIF($D$25:$D$38,">0"),"") -> 0
B41: Tope diario IMSS = 25 × UMA diaria | C41: =IFERROR(ROUND(IF(MONTH(D7)=1,UMAE,UMAF)*25,2),"") -> 2828.5
B46: Salario base de cotización en jornada reducida
B48: Zona del salario mínimo | C48: Zona del Salario Mínimo General
B49: Salario mínimo | C49: =IFERROR(VLOOKUP(C48,ZONAS,2,FALSE),"") -> 315.04
B50: Cuota por hora que se paga | C50: 50
B51: Días de la semana | C51: Horas trabajadas | D51: Total percibido por cada unidad de tiempo
B52: Lunes | C52: 5 | D52: =IFERROR(IF(C52<>"",ROUND(C52*$C$50,2),""),"") -> 250
B53: Martes | C53: 5 | D53: =IFERROR(IF(C53<>"",ROUND(C53*$C$50,2),""),"") -> 250
B54: Miércoles | C54: 5 | D54: 250
B55: Jueves | C55: 5 | D55: 250
B56: Viernes | C56: 4 | D56: 200
B57: Sábado | C57: 3 | D57: 150
B58: Domingo
C59: Total pagado | D59: =SUMIF(D52:D58,">0") -> 1350
C60: (/) | D60: 7
C61: (=) SBC | D61: =IFERROR(ROUND(D59/D60,2),"") -> 192.86
C63: Salario base de cotización IMSS | D63: =IFERROR(IF(D61>=C49,D61,C49),"") -> 315.04
B67: Salario base de cotización en semana reducida
B69: Zona del salario mínimo | C69: Zona del Salario Mínimo General
B70: Salario mínimo | C70: =IFERROR(VLOOKUP(C69,ZONAS,2,FALSE),"") -> 315.04
B71: Salario diario | C71: 600
B72: Días de la semana | C72: Días que trabaja | D72: Total percibido por cada unidad de tiempo
B73: Lunes | C73: Sí | D73: =IFERROR(IF(C73="Sí",$C$71,""),"") -> 600
B74: Martes | D74: =IFERROR(IF(C74="Sí",$C$71,""),"") -> 
B75: Miércoles | C75: Sí | D75: 600
B76: Jueves
B77: Viernes | C77: Sí | D77: 600
B78: Sábado | C78: Sí | D78: 600
B79: Domingo
C80: Total pagado | D80: =SUMIF(D73:D79,">0") -> 2400
C81: (+) Séptimo día | D81: =IFERROR(ROUND(D80*(1/6),2),"") -> 400
C82: (=) Base para SBC | D82: =SUMIF(D80:D81,">0") -> 2800
C83: (/) | D83: 7
C84: (=) Resultado | D84: =IFERROR(ROUND(D82/D83,2),"") -> 400
C85: (x) Factor de integración | D85: 1.0493
C86: (=) SBC | D86: =IFERROR(ROUND(D84+D85,2),"") -> 401.05
C88: Salario base de cotización IMSS | D88: =IFERROR(IF(D86>=C70,D86,C70),"") -> 401.05

Sheet DSDI (hidden)
B3: Unidad de obra
B4: Período de Trabajo | D4: Días Trabajados | E4: Metros Cuadrados Instalados | F4: Cuota por metro cuadrado | G4: Percepción Total
B5: 2026-01-01 | C5: 2026-01-07 | D5: =IF(AND(B5<>"",C5<>""),DATEDIF(B5,C5,"D")+1,"") -> 7 | E5: 70 | F5: 50 | G5: =IFERROR(E5*F5,"") -> 3500
B6: =C5+1 -> 2026-01-08 | C6: =C5+6 -> 2026-01-13 | D6: =IF(AND(B6<>"",C6<>""),DATEDIF(B6,C6,"D")+1,"") -> 6 | E6: 60 | F6: 50 | G6: =IFERROR(E6*F6,"") -> 3000
B7: =C6+1 -> 2026-01-14 | C7: =B7+6 -> 2026-01-20 | D7: 7 | E7: 80 | F7: 50 | G7: 4000
B8: =C7+1 -> 2026-01-21 | C8: =B8+6 -> 2026-01-27 | D8: 7 | E8: 75 | F8: 50 | G8: 3750
B9: =C8+1 -> 2026-01-28 | C9: 2026-01-30 | D9: 3 | E9: 65 | F9: 50 | G9: 3250
E10: 20 | F10: 50 | G10: 1000
B11: Totales | D11: =SUM(D5:D10) -> 30 | G11: =SUM(G5:G10) -> 18500
B14: Salario diario promedio | D14: =G11 -> 18500 | E14: ="= "&IFERROR(ROUND(D14/D15,2),"") -> = 616.67
D15: =D11 -> 30
B18: Determinción cuando la retribución es variable
B19: Fecha de cálculo | C19: 2026-01-01
B20: Fecha inicial cálculo | C20: =IFERROR(IF(C19<>"",C19-30,""),"") -> 2025-12-02
B21: Fecha de aumento (en su caso)
B23: Periodo trabajado | C23: Percepciones pagadas
B24: =IF(C20<>"",C20,"") -> 2025-12-02
B25: =IFERROR(B24+1,"") -> 2025-12-03
B26: =IFERROR(B25+1,"") -> 2025-12-04 | C26: 6000
B27: 2025-12-05
B28: 2025-12-06
B29: 2025-12-07
B30: 2025-12-08
B31: 2025-12-09
B32: 2025-12-10
B33: 2025-12-11
B34: 2025-12-12
B35: 2025-12-13 | C35: 3600
B36: 2025-12-14
B37: 2025-12-15
B38: 2025-12-16
B39: 2025-12-17
B40: =IFERROR(B39+1,"") -> 2025-12-18
B41: 2025-12-19
B42: 2025-12-20
B43: 2025-12-21
B44: 2025-12-22 | C44: 2800
B45: 2025-12-23
B46: 2025-12-24
B47: 2025-12-25
B48: 2025-12-26
B49: 2025-12-27
B50: 2025-12-28 | C50: 1900
B51: 2025-12-29
B52: 2025-12-30
B53: 2025-12-31
B54: 2026-01-01
B55: Total | C55: =SUM(C24:C54) -> 14300
B58: Salario diario promedio | D58: =IFERROR(IF(C21="",C55,SUM(INDIRECT(ADDRESS(MATCH(C21,B24:B54,0)+23,3)):C54)),0) -> 14300 | E58: ="= "&IFERROR(DOLLAR(ROUND(D58/D59,2),2),"") -> = $476.67
D59: =IFERROR(IF(C21="",30,COUNTA(INDIRECT(ADDRESS(MATCH(C21,B24:B54,0)+23,2)):B54)),0) -> 30

Sheet RIMSS (hidden)
B3: Capture información en las celdas de color verde
B6: Seguro y concepto | C6: Prestaciones | D6: Cuota Patrón | E6: Tasa Patrón | F6: Cuota Trabajador | G6: Total | H6: Base salarial | I6: Fundamento legal
B7: Riesgos de Trabajo | C7: En especie y dinero | D7: Conforme con su siniestralidad laboral | F7: 0 | G7: Prima correspondiente | H7: Salario base de cotización (SBC) | I7: Artículo 40, 70, 73 LSS y 24 RMACERF
B8: Enfermedades y Maternidad | C8: En especie | D8: Cuota fija por cada colaborador hasta por tres Salarios Mínimos General Vigente (SMGV) en el DF | E8: 0.204 | F8: 0 | G8: 0.204 | H8: UMA | I8: Artículo 105, 106 Y 107 LSS
B9: Enfermedades y Maternidad | C9: En especie | D9: Cuota adicional por la diferencia del SBC y de tres veces el valor de la UMA | E9: 0.011 | F9: 0.004 | G9: 0.015 | H9: Diferencia entre el SBC y tres UMAS
B10: Enfermedades y Maternidad | C10: En dinero | D10: 0.007 | F10: 0.0025 | G10: 0.0095 | H10: SBC
B11: Enfermedades y Maternidad | C11: Gastos médicos para pensionados y beneficiarios | D11: 0.0105 | F11: 0.00375 | G11: 0.0143 | H11: SBC
B12: Invalidez y Vida | C12: En especie y dinero | D12: 0.0175 | F12: 0.0063 | G12: 0.0238 | H12: SBC | I12: Artículo 112, 146 y 147 LSS
B13: Retiro, Cesantía en Edad Avanzada y Vejez (CEAV) | C13: Retiro | D13: 0.02 | F13: 0 | G13: 0.02 | H13: SBC | I13: Artículo 152, 167 y 168 LSS
C14: CEAV | D14: 3.15% * | F14: 0.01125 | G14: 0.0428 | H14: SBC
B15: Guarderías y Prestaciones Sociales | C15: En especie | D15: 0.01 | F15: 0 | G15: 0.01 | H15: SBC | I15: Artículo 201, 211 y 212 LSS
B17: * Cambia a partir del ejercicio de 2023
B19: Artículo 38 LSS. El patrón al efectuar el pago de salarios a sus trabajadores, deberá retener las cuotas que a éstos les corresponde cubrir. Cuando no lo haga en tiempo oportuno, sólo podrá descontar al trabajador cuatro cotizaciones semanales acumuladas, quedando las restantes a su cargo. El patrón tendrá el carácter de retenedor de las cuotas que descuente a sus trabajadores y deberá determinar y enterar al Instituto las cuotas obrero patronales, en los términos establecidos por esta Ley y sus reglamentos.
B22: Fecha inicial de cálculo
B23: Fecha final de cálculo
B24: Salario diario del trabajador
B25: Zona del salario mínimo
B26: Salario mínimo | C26: =IFERROR(VLOOKUP(C25,GENERALES1!B21:C22,2,FALSE),"") -> 
B27: Mes de la UMA
B28: Valor de la UMA | C28: =IFERROR(VLOOKUP(C27,GENERALES1!B25:C26,2,FALSE),"") -> 
B29: ¿Días de aguinaldo que se otorgan?
B30: % de la prima vacacional
B31: Días del periodo a calcular
B33: Seguro y concepto | C33: Prestaciones | D33: Salario Base de Cotización | E33: (-) 3 umas | F33: (=) Excedente 3 umas | G33: (x) Cuota obrera | H33: (=) Cuota diaria | I33: (x) días del periodo | J33: (=) Cuota obrera
B34: Enfermedades y Maternidad | C34: En especie | D34: =IFERROR(ROUND($C$24*(1+($C$29/365)+(VLOOKUP(VALUE(DATEDIF($C$22,$C$23,"Y")&"."&DATEDIF($C$22,$C$23,"YM")&DATEDIF($C$22,$C$23,"MD")),TABLAV,3)/365*$C$30)),2),"") -> 0 | E34: =IFERROR(C28*3,0) -> 0 | F34: =IFERROR(IF(D34>=E34,D34-E34,0),0) -> 0 | G34: =F9 -> 0.004 | H34: =IFERROR(ROUND(F34*G34,2),0) -> 0 | I34: =IFERROR($C$31,"") -> 0 | J34: =IFERROR(ROUND(H34*I34,2),0) -> 0
B35: Enfermedades y Maternidad | C35: En dinero | D35: =IFERROR(ROUND($C$24*(1+($C$29/365)+(VLOOKUP(VALUE(DATEDIF($C$22,$C$23,"Y")&"."&DATEDIF($C$22,$C$23,"YM")&DATEDIF($C$22,$C$23,"MD")),TABLAV,3)/365*$C$30)),2),"") -> 0 | G35: =F10 -> 0.0025 | H35: =IFERROR(ROUND(D35*G35,2),0) -> 0 | I35: =IFERROR($C$31,"") -> 0 | J35: =IFERROR(ROUND(H35*I35,2),0) -> 0
B36: Enfermedades y Maternidad | C36: Gastos médicos para pensionados y beneficiarios | D36: =IFERROR(ROUND($C$24*(1+($C$29/365)+(VLOOKUP(VALUE(DATEDIF($C$22,$C$23,"Y")&"."&DATEDIF($C$22,$C$23,"YM")&DATEDIF($C$22,$C$23,"MD")),TABLAV,3)/365*$C$30)),2),"") -> 0 | G36: =F11 -> 0.00375 | H36: =IFERROR(ROUND(D36*G36,2),0) -> 0 | I36: 0 | J36: 0
B37: Invalidez y Vida | C37: En especie y dinero | D37: =IFERROR(ROUND($C$24*(1+($C$29/365)+(VLOOKUP(VALUE(DATEDIF($C$22,$C$23,"Y")&"."&DATEDIF($C$22,$C$23,"YM")&DATEDIF($C$22,$C$23,"MD")),TABLAV,3)/365*$C$30)),2),"") -> 0 | G37: =F12 -> 0.0063 | H37: 0 | I37: 0 | J37: 0
B38: Cesantía en Edad Avanzada y Vejez (CEAV) | D38: =IFERROR(ROUND($C$24*(1+($C$29/365)+(VLOOKUP(VALUE(DATEDIF($C$22,$C$23,"Y")&"."&DATEDIF($C$22,$C$23,"YM")&DATEDIF($C$22,$C$23,"MD")),TABLAV,3)/365*$C$30)),2),"") -> 0 | G38: =F14 -> 0.01125 | H38: 0 | I38: 0 | J38: 0
I39: Total | J39: =SUM(J34:J38) -> 0
B41: Artículo 36 LSS. Corresponde al patrón pagar íntegramente la cuota señalada para los trabajadores, en los casos en que éstos perciban como cuota diaria el salario mínimo.
B43: Importe a retener | C43: =IFERROR(IF(C24>C26,J39,0),"") -> 0

Sheet RISR_IMSS (hidden)
B2: Capture información en las celdas de color verde
B4: Año de cálculo
B5: Mes de cálculo
B6: Periodicidad de pago
B7: Salario diario
B8: Salario base de cotización
B9: Zona del salario mínimo
B10: Salario mínimo | C10: =IFERROR(VLOOKUP(C9,GENERALES1!$B$21:$C$22,2,FALSE),"") -> 
B11: Mes de la UMA
B12: Valor de la UMA | C12: =IFERROR(VLOOKUP(C11,GENERALES1!$B$25:$C$26,2,FALSE),"") -> 
B15: V. Tarifa aplicable durante 2025 para el cálculo de los pagos provisionales mensuales a que se refieren los artículos 96 de la Ley del ISR y 175 de su Reglamento, así como la regla 3.12.2.
B16: Límite inferior | C16: Límite superior | D16: Cuota fija | E16: Por ciento para aplicarse sobre el excedente del límite inferior
B17: $ | C17: $ | D17: $ | E17: %
A18: ① | B18: 0.01 | C18: =IFERROR(IF($C$6<>"",IF($C$6<30,ROUND(TARIFA!C9/30.4*$C$6,2),TARIFA!C9),""),"") ->  | D18: =IFERROR(IF($C$6<>"",IF($C$6<30,ROUND(TARIFA!D9/30.4*$C$6,2),TARIFA!D9),""),"") ->  | E18: 1.92
A19: ① | B19: =IFERROR(C18+0.01,"") ->  | C19: =IFERROR(IF($C$6<>"",IF($C$6<30,ROUND(TARIFA!C10/30.4*$C$6,2),TARIFA!C10),""),"") ->  | D19: =IFERROR(IF($C$6<>"",IF($C$6<30,ROUND(TARIFA!D10/30.4*$C$6,2),TARIFA!D10),""),"") ->  | E19: 6.4
A20: ① | B20: =IFERROR(C19+0.01,"") ->  | C20: =IFERROR(IF($C$6<>"",IF($C$6<30,ROUND(TARIFA!C11/30.4*$C$6,2),TARIFA!C11),""),"") ->  | D20: =IFERROR(IF($C$6<>"",IF($C$6<30,ROUND(TARIFA!D11/30.4*$C$6,2),TARIFA!D11),""),"") ->  | E20: 10.88
A21: ① | C21: =IFERROR(IF($C$6<>"",IF($C$6<30,ROUND(TARIFA!C12/30.4*$C$6,2),TARIFA!C12),""),"") ->  | D21: =IFERROR(IF($C$6<>"",IF($C$6<30,ROUND(TARIFA!D12/30.4*$C$6,2),TARIFA!D12),""),"") ->  | E21: 16
A22: ① | C22: =IFERROR(IF($C$6<>"",IF($C$6<30,ROUND(TARIFA!C13/30.4*$C$6,2),TARIFA!C13),""),"") ->  | D22: =IFERROR(IF($C$6<>"",IF($C$6<30,ROUND(TARIFA!D13/30.4*$C$6,2),TARIFA!D13),""),"") ->  | E22: 17.92
A23: ① | C23: =IFERROR(IF($C$6<>"",IF($C$6<30,ROUND(TARIFA!C14/30.4*$C$6,2),TARIFA!C14),""),"") ->  | D23: =IFERROR(IF($C$6<>"",IF($C$6<30,ROUND(TARIFA!D14/30.4*$C$6,2),TARIFA!D14),""),"") ->  | E23: 21.36
A24: ① | C24: =IFERROR(IF($C$6<>"",IF($C$6<30,ROUND(TARIFA!C15/30.4*$C$6,2),TARIFA!C15),""),"") ->  | D24: =IFERROR(IF($C$6<>"",IF($C$6<30,ROUND(TARIFA!D15/30.4*$C$6,2),TARIFA!D15),""),"") ->  | E24: 23.52
A25: ① | C25: =IFERROR(IF($C$6<>"",IF($C$6<30,ROUND(TARIFA!C16/30.4*$C$6,2),TARIFA!C16),""),"") ->  | D25: =IFERROR(IF($C$6<>"",IF($C$6<30,ROUND(TARIFA!D16/30.4*$C$6,2),TARIFA!D16),""),"") ->  | E25: 30
A26: ① | C26: =IFERROR(IF($C$6<>"",IF($C$6<30,ROUND(TARIFA!C17/30.4*$C$6,2),TARIFA!C17),""),"") ->  | D26: =IFERROR(IF($C$6<>"",IF($C$6<30,ROUND(TARIFA!D17/30.4*$C$6,2),TARIFA!D17),""),"") ->  | E26: 32
A27: ① | C27: =IFERROR(IF($C$6<>"",IF($C$6<30,ROUND(TARIFA!C18/30.4*$C$6,2),TARIFA!C18),""),"") ->  | D27: =IFERROR(IF($C$6<>"",IF($C$6<30,ROUND(TARIFA!D18/30.4*$C$6,2),TARIFA!D18),""),"") ->  | E27: 34
A28: ① | C28: =TARIFA!C19 -> En adelante | D28: =IFERROR(IF($C$6<>"",IF($C$6<30,ROUND(TARIFA!D19/30.4*$C$6,2),TARIFA!D19),""),"") ->  | E28: 35
B30: Salario del periodo | D30: =IFERROR(IF(C7<>"",ROUND(C7*C6,2),""),"") -> 
B31: (+) Otros ingresos
B32: (-) Deducciones
B33: (=) Salario base para ISR | D33: =IFERROR(ROUND(D30+D31-D32,2),"") -> 
B34: Salario acumulado para subsidio al empleo (en su caso)
C36: Salario base para ISR | D36: =IFERROR(IF(D33>0,D33,""),"") ->  | G36: =IF($D$36<>"","Determinación del subsidio al empleo","") -> 
C37: (-) Límite inferior | D37: =IFERROR(VLOOKUP(D36,$B$18:$E$28,1),"") ->  | E37: ① | G37: =IF($D$36<>"","Valor de la UMA mensual","") ->  | H37: =IF(G37<>"",IF(C5="Enero",GENERALES1!C28,GENERALES1!C29),"") -> 
C38: (=) Excedente límite inferior | D38: =IFERROR(D36-D37,"") ->  | G38: =IF($D$36<>"","% de subsidio","") ->  | H38: =IF(D36<>"",IF(C5="Enero",TARIFA!E27,TARIFA!D24),"") -> 
C39: (x) % excedente límite inferior | D39: =IFERROR(IF(D36<>"",VLOOKUP(D36,$B$18:$E$28,4),""),"") ->  | E39: ① | G39: =IF($D$36<>"","Valor mensual del subsidio","") ->  | H39: =IF(G39<>"",ROUND(H37*H38,2),"") -> 
C40: (=) Impuesto marginal | D40: =IFERROR(ROUND(D38*D39%,2),"") ->  | G40: =IF(AND($D$36<>"",$C$6<30),"(/) 30.4","") ->  | H40: =IF(G40<>"",30.4,"") -> 
C41: (+) Cuota fija | D41: =IFERROR(VLOOKUP(D36,$B$18:$E$28,3),"") ->  | E41: ① | G41: =IF(AND($D$36<>"",$C$6<30),"(x) Periodo de pago","") ->  | H41: =IF(G41<>"",C6,"") -> 
C42: (=) ISR causado | D42: =IFERROR(D40+D41,"") ->  | G42: =IF(AND($D$36<>"",$C$6<30),"(=) Subsidio al empleo del periodo","") ->  | H42: =IF(G42<>"",ROUND(H39/H40*H41,2),"") -> 
C43: (-) Subsidio al empleo causado | D43: =IFERROR(IF((D33+D34)<=GENERALES1!$C$30,IF($C$6<30,IF(D42>=H42,H42,D42),IF(D42>=H39,H39,D42)),0),"") -> 
C44: (=) ISR a retener | D44: =IFERROR(D42-D43,"") -> 
B47: Seguro y concepto | C47: Prestaciones | D47: Salario Base de Cotización | E47: (-) 3 umas | F47: (=) Excedente 3 umas | G47: (x) Cuota obrera | H47: (=) Cuota diaria | I47: (x) días del periodo | J47: (=) Cuota obrera
B48: Enfermedades y Maternidad | C48: En especie | D48: =IF(C8<>"",$C$8,"") ->  | E48: =IFERROR($C$12*3,0) -> 0 | F48: =IFERROR(IF(D48>=E48,D48-E48,0),0) -> 0 | G48: =RIMSS!G34 -> 0.004 | H48: =IFERROR(ROUND(F48*G48,2),0) -> 0 | I48: =$C$6 -> 0 | J48: =IFERROR(ROUND(H48*I48,2),0) -> 0
B49: Enfermedades y Maternidad | C49: En dinero | D49: =IF(C9<>"",$C$8,"") ->  | G49: =RIMSS!G35 -> 0.0025 | H49: =IFERROR(ROUND(D49*G49,2),0) -> 0 | I49: =$C$6 -> 0 | J49: =IFERROR(ROUND(H49*I49,2),0) -> 0
B50: Enfermedades y Maternidad | C50: Gastos médicos para pensionados y beneficiarios | G50: =RIMSS!G36 -> 0.00375 | H50: =IFERROR(ROUND(D50*G50,2),0) -> 0 | I50: 0 | J50: 0
B51: Invalidez y Vida | C51: En especie y dinero | G51: =RIMSS!G37 -> 0.0063 | H51: 0 | I51: 0 | J51: 0
B52: Cesantía en Edad Avanzada y Vejez (CEAV) | G52: =RIMSS!G38 -> 0.01125 | H52: 0 | I52: 0 | J52: 0
I53: Total | J53: =SUM(J48:J52) -> 0
B55: Ingreso base para ISR | C55: =IFERROR(IF(D36<>"",D36,""),"") -> 
B56: (-) Retención de ISR | C56: =IF(C7>C10,D44,"") -> 
B57: (-) Retención de IMSS | C57: =IF(C7>C10,J53,"") -> 
B58: (=) Neto | C58: =IFERROR(C55-SUMIF(C56:C57,">0"),"") -> 
B62: Las personas que hagan pagos por los conceptos a que se refiere el artículo 95 de esta Ley, efectuarán la retención aplicando al ingreso total por este concepto, una tasa que se calculará dividiendo el impuesto correspondiente al último sueldo mensual ordinario, entre dicho sueldo; el cociente obtenido se multiplicará por cien y el producto se expresará en por ciento. Cuando los pagos por estos conceptos sean inferiores al último sueldo mensual ordinario, la retención se calculará aplicándoles la tarifa establecida en este artículo. Fundamento: Artículo 96 sexto párrafo LISR
B64: Retención de ISR por pagos por separación
B65: Fecha de ingreso
B66: Fecha de cálculo
B67: Salario diario
B68: Salario diario integrado
B69: Zona del salario mínimo
B70: Salario mínimo | C70: =IFERROR(VLOOKUP(C69,GENERALES1!$B$21:$C$22,2,FALSE),"") -> 
B71: Valor de la UMA | C71: =IFERROR(IF(C66<>"",IF(MONTH(C66)=1,GENERALES1!C25,GENERALES1!C26),""),"") -> 
B72: Antigüedad para LFT | C72: =IFERROR(DATEDIF(C65,C66,"Y"),"") -> 0
B73: Antigüedad para ISR | C73: =IFERROR(IF(AND(C65<>"",C66<>""),IF(VALUE(DATEDIF(C65,C66,"YM")&DATEDIF(C65,C66,"MD"))>6,DATEDIF(C65,C66,"Y")+1,DATEDIF(C65,C66,"Y")),""),"") -> 
B74: Último sueldo mensual ordinario | C74: =IFERROR(IF(C67<>"",C67,""),"") -> 
C76: Calcular los siguiente conceptos
C77: Prima de antigüedad | E77: =IFERROR(IF(D77="Sí",ROUND(12*C72*IF(C67>=(C70*2),ROUND(C70,2),C67),2),""),"") -> 
C78: 3 meses | E78: =IFERROR(IF(D78="Sí",ROUND(90*C68,2),""),"") -> 
C79: 20 días por año | E79: =IFERROR(IF(D79="Sí",ROUND(20*C72*C68,2),""),"") -> 
D80: Total pagos | E80: =SUMIF(E77:E79,">0") -> 0
D81: (-) Ingreso exento | E81: =IFERROR(IF(E80>=ROUND(C71*90*C73,2),ROUND(C71*90*C73,2),E80),"") -> 
D82: (=) Ingreso acumulable | E82: =IFERROR(E80-E81,"") -> 
D83: (-) Último sueldo mensual ordinario | E83: =IFERROR(IF(OR(D77<>"",D78<>"",D79<>""),ROUND(C67*30,2),""),"") -> 
D84: (=) Ingreso no acumulable | E84: =IFERROR(IF(E82>=E83,E82-E83,0),"") -> 
B86: Determinación de la retención de ISR
B87: =IF(E82>=E83,"Último sueldo mensual ordinario","Ingreso acumulable") -> Último sueldo mensual ordinario | C87: =IF(E82>=E83,E83,E82) -> 
B88: =IF(E82>E83,"Determinación de la tasa de ISR","ISR a retener") -> ISR a retener | C88: =IFERROR(IF(E82<E83,ROUND(((E82-VLOOKUP(E82,TARIFA!$B$9:$E$19,1))*VLOOKUP(E82,TARIFA!$B$9:$E$19,4)%)+VLOOKUP(E82,TARIFA!$B$9:$E$19,3),2),""),0) -> 
B89: =IF(E82>E83,"ISR último sueldo mensual ordinario","") ->  | C89: =IFERROR(IF(E82>E83,ROUND(((E83-VLOOKUP(E83,TARIFA!$B$9:$E$19,1))*VLOOKUP(E83,TARIFA!$B$9:$E$19,4)%)+VLOOKUP(E83,TARIFA!$B$9:$E$19,3),2),""),"") -> 
B90: =IF(E82>E83,"(/) Último sueldo mensual ordinario","") ->  | C90: =IF(B90<>"",E83,"") -> 
B91: =IF(E82>E83,"(=) Tasa de ISR","") ->  | C91: =IFERROR(IF(B91<>"",ROUND(C89/C90,4),""),"") -> 
B93: =IF(E82>E83,"Ingreso acumulable","") ->  | C93: =IF(B93<>"",E82,"") -> 
B94: =IF(E82>E83,"(x) Tasa de ISR","") ->  | C94: =IF(B94<>"",C91,"") -> 
B95: =IF(E82>E83,"(=) ISR a retener","") ->  | C95: =IFERROR(IF(B95<>"",ROUND(C93*C94,2),""),"") -> 

Sheet EMISIONM (hidden)
B2: Determinación de las cuotas obrero patronales mensuales
C3: Año de cálculo
C4: Mes
C5: Valor de la UMA
C6: Prima de riesgo | J6: Enfermedad y maternidad excedente 3 veces el valor de la UMA | L6: Enfermedad y maternidad prestaciones en dinero | N6: Enfermedad y maternidad gastos médicos pensionados | Q6: Invalidez y vida
I7: 0.204 | J7: 0.011 | K7: 0.004 | L7: 0.007 | M7: 0.0025 | N7: 0.0105 | O7: 0.00375 | Q7: 0.0175 | R7: 0.00625 | S7: 0.01
B8: NSS | C8: Nombre | D8: Días del mes | E8: Faltas | F8: Incapacidades | G8: Salario diario (opcional) | H8: Salario base de cotización | I8: Cuota Fija | J8: Excedente Patronal | K8: Excedente Obrero | L8: Prestaciones en Dinero Patronal | M8: Prestaciones en Dinero Obrero | N8: Gastos Médicos y Pensionados Patronal | O8: Gastos Médicos y Pensionados Obrero | P8: Riesgos de Trabajo | Q8: Invalidez y Vida Patronal | R8: Invalidez y Vida Obrero | S8: Guarderías y Prestaciones Sociales | T8: Total

Sheet EMISIONB (hidden)
B2: Determinación de las cuotas obrero patronales bimestral
C3: Año de cálculo
C4: Bimestre
C5: Salarío mínimo general de la zona
C6: Valor de la UMA
J7: Cesantía en Edad Avanzada y Vejez
I8: 0.02 | K8: 0.01125 | M8: 0.05
B9: NSS | C9: Nombre | D9: Días del bimestre | E9: Faltas | F9: Incapacidades | G9: Salario diario | H9: Salario base de cotización | I9: Retiro | J9: Cesantía en Edad Avanzada y Vejez Patronal | K9: Cesantía en Edad Avanzada y Vejez Obrero | L9: Subtotal RCV | M9: Aportación Patronal INFONAVIT | N9: Tipo de Descuento | O9: Valor de Descuento | P9: Número de Crédito | Q9: Amortización | R9: Subtotal Infonavit | S9: Total

Sheet RESUMEN IMSS (hidden)
B5: Resumen Emisión IMSS | E5: Resumen Emisión RCV
B7: Periodo Mensual | E7: Bimestre
B8: Días | E8: Número de acreditados
B9: Total Cotizantes IMSS
B10: Prima de Riesgos de Trabajo | E10: Total Aportación Pat. Infonavit
B12: Cuota Fija | E12: Aportación Pat. S/C Infonavit
B13: Excedente Patronal | E13: Aportación Pat. C/C Infonavit
B14: Excedente Obrero | E14: Amortización
B15: Prestaciones en Dinero Patronal | E15: Aport. Pat. C/C Det. Infonavit mas Amort.
B16: Prestaciones en Dinero Obrero | E16: Suma Infonavit
B17: Gastos Médicos y Pensionados Patronal
B18: Gastos Médicos y Pensionados Obrero | E18: Retiro
B19: Riesgos de Trabajo | E19: Cesantía y vejez Patronal
B20: Invalidez y Vida Patronal | E20: Cesantía y vejez Obrero
B21: Invalidez y Vida Obrero | E21: Suma RCV
B22: Guarderías y Prestaciones Sociales
B23: Total | E23: Total

Sheet CEDULA (hidden)
B3: Determinación de diferencias (capture en las celdas de color verde los datos de las emisiones anticipadas)
B6: Periodo al que corresponde | G6: Datos del cálculo manual | K6: Difetencias
B7: Concepto | C7: Patronal | D7: Obrera | E7: Suma | G7: Patronal | H7: Obrera | I7: Suma | K7: Patronal | L7: Obrera | M7: Suma
B8: IMPORTE TOTAL
B9: Cuota Fija
B10: Excedente
B11: Prestaciones en Dinero
B12: Gastos Med. Pens. Art. 25
B13: Riesgos de Trabajo
B14: Invalidez y Vida Patronal
B15: Guarderías y Prestaciones Sociales
B18: Periodo al que corresponde
C19: Emisión IMSS | D19: Resumen cálculo | E19: Diferencias
B20: Aportación Pat. S/C Infonavit
B21: Aportación Pat. C/C Infonavit
B22: Amortización
B23: Aport. Pat. C/C Det. Infonavit mas Amort.
B24: Suma Infonavit
B26: Retiro
B27: Cesantía y vejez Patronal
B28: Cesantía y vejez Obrero
B29: Suma RCV

Sheet TARIFA (hidden)
G4: Convertir a: | H4: =IF(RISR_IMSS!C6<>"",RISR_IMSS!C6,30) -> 30
B6: V. Tarifa aplicable durante 2026 para el cálculo de los pagos provisionales mensuales a que se refieren los artículos 96 de la Ley del ISR y 175 de su Reglamento, así como la regla 3.12.2.
B7: Límite inferior | C7: Límite superior | D7: Cuota fija | E7: Por ciento para aplicarse sobre el excedente del límite inferior | G7: Límite inferior | H7: Límite superior | I7: Cuota fija | J7: Por ciento para aplicarse sobre el excedente del límite inferior
B8: $ | C8: $ | D8: $ | E8: % | G8: $ | H8: $ | I8: $ | J8: %
B9: 0.01 | C9: 844.59 | D9: 0 | E9: 1.92 | G9: 0.01 | H9: =IFERROR(IF($H$4<30,ROUND(C9/30.4*$H$4,2),C9),C9) -> 844.59 | I9: =IFERROR(IF($H$4<30,ROUND(D9/30.4*$H$4,2),D9),D9) -> 0 | J9: 1.92
B10: 844.6 | C10: 7168.51 | D10: 16.22 | E10: 6.4 | G10: =IFERROR(H9+0.01,H9) -> 844.6 | H10: =IFERROR(IF($H$4<30,ROUND(C10/30.4*$H$4,2),C10),C10) -> 7168.51 | I10: =IFERROR(IF($H$4<30,ROUND(D10/30.4*$H$4,2),D10),D10) -> 16.22 | J10: 6.4
B11: 7168.52 | C11: 12598.02 | D11: 420.95 | E11: 10.88 | G11: =IFERROR(H10+0.01,H10) -> 7168.52 | H11: 12598.02 | I11: 420.95 | J11: 10.88
B12: 12598.03 | C12: 14644.64 | D12: 1011.68 | E12: 16 | G12: 12598.03 | H12: 14644.64 | I12: 1011.68 | J12: 16
B13: 14644.65 | C13: 17533.64 | D13: 1339.14 | E13: 17.92 | G13: 14644.65 | H13: 17533.64 | I13: 1339.14 | J13: 17.92
B14: 17533.65 | C14: 35362.83 | D14: 1856.84 | E14: 21.36 | G14: 17533.65 | H14: 35362.83 | I14: 1856.84 | J14: 21.36
B15: 35362.84 | C15: 55736.68 | D15: 5665.16 | E15: 23.52 | G15: 35362.84 | H15: 55736.68 | I15: 5665.16 | J15: 23.52
B16: 55736.69 | C16: 106410.5 | D16: 10457.09 | E16: 30 | G16: 55736.69 | H16: 106410.5 | I16: 10457.09 | J16: 30
B17: 106410.51 | C17: 141880.66 | D17: 25659.23 | E17: 32 | G17: 106410.51 | H17: 141880.66 | I17: 25659.23 | J17: 32
B18: 141880.67 | C18: 425641.99 | D18: 37009.69 | E18: 34 | G18: 141880.67 | H18: 425641.99 | I18: 37009.69 | J18: 34
B19: 425642 | C19: En adelante | D19: 133488.54 | E19: 35 | G19: 425642 | H19: En adelante | I19: 133488.54 | J19: 35
B23: Valor de la UMA mensual | D23: 3300.53
B24: % del subsidio al empleo | D24: =GENERALES1!C31 -> 0.1502
B25: Importe para subsidio | D25: =GENERALES1!C30 -> 11492.66
B27: % subsidio al empleo Enero | E27: =GENERALES1!C32 -> 0.1559
B177: 1
B178: 2
B179: 3
B180: 4
B181: 5
B182: 6
B183: 7
B184: 8
B185: 9
B186: 10
B187: 11
B188: 12
B189: 13
B190: 14
B191: 15
B192: 16
B193: 17
B194: 18
B195: 19
B196: 20
B197: 21
B198: 22
B199: 23
B200: 24
B201: 25
B202: 26
B203: 27
B204: 28
B205: 29
B206: 30
B207: 31

Sheet GENERALES1 (hidden)
B5: Tabla de vacaciones para trabajadores de no buques (art. 76 LFT)
B6: Años
B7: Mínimo | C7: Máximo | D7: Días
B8: 0 | C8: 1 | D8: 12
B9: =C8+0.01 -> 1.01 | C9: 2 | D9: =D8+2 -> 14
B10: =C9+0.01 -> 2.01 | C10: 3 | D10: =D9+2 -> 16
B11: 3.01 | C11: 4 | D11: 18
B12: 4.01 | C12: 5 | D12: 20
B13: 5.01 | C13: =C12+5 -> 10 | D13: 22
B14: 10.01 | C14: =C13+5 -> 15 | D14: 24
B15: 15.01 | C15: 20 | D15: 26
B16: 20.01 | C16: 25 | D16: 28
B17: 25.01 | C17: 30 | D17: 30
B18: 30.01 | C18: 35 | D18: 32
B20: Salario mínimo
B21: Zona Libre de la Frontera Norte | C21: 440.87
B22: Zona del Salario Mínimo General | C22: 315.04
B24: Valor de la UMA
B25: Enero | C25: 113.14
B26: Febrero en adelante | C26: 117.31
B28: Valor de la UMA mensual enero | C28: 3439.46
B29: Valor de la UMA mensual posterior | C29: 3566.22
B30: Total base ISR para subsidio | C30: 11492.66
B31: % del subsidio al empleo | C31: 0.1502
B32: % Subsidio al empleo Enero | C32: 0.1559

Sheet GENERAL (hidden)
B4: Enero | C4: =IFERROR(DAY(EOMONTH(DATE(EMISIONM!$D$3,ROW($A1),1),0)),"") -> 31
B5: Febrero | C5: =IFERROR(DAY(EOMONTH(DATE(EMISIONM!$D$3,ROW($A2),1),0)),"") -> 28
B6: Marzo | C6: =IFERROR(DAY(EOMONTH(DATE(EMISIONM!$D$3,ROW($A3),1),0)),"") -> 31
B7: Abril | C7: =IFERROR(DAY(EOMONTH(DATE(EMISIONM!$D$3,ROW($A4),1),0)),"") -> 30
B8: Mayo | C8: =IFERROR(DAY(EOMONTH(DATE(EMISIONM!$D$3,ROW($A5),1),0)),"") -> 31
B9: Junio | C9: =IFERROR(DAY(EOMONTH(DATE(EMISIONM!$D$3,ROW($A6),1),0)),"") -> 30
B10: Julio | C10: =IFERROR(DAY(EOMONTH(DATE(EMISIONM!$D$3,ROW($A7),1),0)),"") -> 31
B11: Agosto | C11: =IFERROR(DAY(EOMONTH(DATE(EMISIONM!$D$3,ROW($A8),1),0)),"") -> 31
B12: Septiembre | C12: =IFERROR(DAY(EOMONTH(DATE(EMISIONM!$D$3,ROW($A9),1),0)),"") -> 30
B13: Octubre | C13: =IFERROR(DAY(EOMONTH(DATE(EMISIONM!$D$3,ROW($A10),1),0)),"") -> 31
B14: Noviembre | C14: =IFERROR(DAY(EOMONTH(DATE(EMISIONM!$D$3,ROW($A11),1),0)),"") -> 30
B15: Diciembre | C15: =IFERROR(DAY(EOMONTH(DATE(EMISIONM!$D$3,ROW($A12),1),0)),"") -> 31
B18: Enero - Febrero | C18: =IFERROR(C4+C5,"") -> 59
B19: Marzo - Abril | C19: =IFERROR(C6+C7,"") -> 61
B20: Mayo - Junio | C20: =IFERROR(C8+C9,"") -> 61
B21: Julio - Agosto | C21: =IFERROR(C10+C11,"") -> 62
B22: Septiembre - Octubre | C22: =IFERROR(C12+C13,"") -> 61
B23: Noviembre - Diciembre | C23: =IFERROR(C14+C15,"") -> 61
B28: Cesantía en edad avanzada y vejez
B29: Valor mímino | C29: Valor máximo | D29: % a aplicar
B30: =IFERROR(EMISIONB!$D$5,"") -> 0 | C30: =IFERROR(EMISIONB!$D$5,"") -> 0 | D30: =IFERROR(VLOOKUP(B30,$B$40:$J$48,VLOOKUP(EMISIONB!$D$3,GENERAL!$B$51:$C$58,2,FALSE),FALSE),"") -> 
B31: =IFERROR(ROUND(EMISIONB!$D$5*1.01,2),"") -> 0 | C31: =IFERROR(ROUND(EMISIONB!$D$6*1.5,2),"") -> 0 | D31: =IFERROR(VLOOKUP(B31,$B$40:$J$48,VLOOKUP(EMISIONB!$D$3,GENERAL!$B$51:$C$58,2,FALSE),FALSE),"") -> 
B32: =IFERROR(ROUND(EMISIONB!$D$6*1.51,2),"") -> 0 | C32: =IFERROR(ROUND(EMISIONB!$D$6*2,2),"") -> 0 | D32: =IFERROR(VLOOKUP(B32,$B$40:$J$48,VLOOKUP(EMISIONB!$D$3,GENERAL!$B$51:$C$58,2,FALSE),FALSE),"") -> 
B33: =IFERROR(ROUND(EMISIONB!$D$6*2.01,2),"") -> 0 | C33: =IFERROR(ROUND(EMISIONB!$D$6*2.5,2),"") -> 0 | D33: =IFERROR(VLOOKUP(B33,$B$40:$J$48,VLOOKUP(EMISIONB!$D$3,GENERAL!$B$51:$C$58,2,FALSE),FALSE),"") -> 
B34: =IFERROR(ROUND(EMISIONB!$D$6*2.51,2),"") -> 0 | C34: =IFERROR(ROUND(EMISIONB!$D$6*3,2),"") -> 0 | D34: =IFERROR(VLOOKUP(B34,$B$40:$J$48,VLOOKUP(EMISIONB!$D$3,GENERAL!$B$51:$C$58,2,FALSE),FALSE),"") -> 
B35: =IFERROR(ROUND(EMISIONB!$D$6*3.01,2),"") -> 0 | C35: =IFERROR(ROUND(EMISIONB!$D$6*3.5,2),"") -> 0 | D35: =IFERROR(VLOOKUP(B35,$B$40:$J$48,VLOOKUP(EMISIONB!$D$3,GENERAL!$B$51:$C$58,2,FALSE),FALSE),"") -> 
B36: =IFERROR(ROUND(EMISIONB!$D$6*3.51,2),"") -> 0 | C36: =IFERROR(ROUND(EMISIONB!$D$6*4,2),"") -> 0 | D36: =IFERROR(VLOOKUP(B36,$B$40:$J$48,VLOOKUP(EMISIONB!$D$3,GENERAL!$B$51:$C$58,2,FALSE),FALSE),"") -> 
B37: =IFERROR(ROUND(EMISIONB!$D$6*4.01,2),"") -> 0 | C37: 99999999 | D37: =IFERROR(VLOOKUP(B37,$B$40:$J$48,VLOOKUP(EMISIONB!$D$3,GENERAL!$B$51:$C$58,2,FALSE),FALSE),"") -> 
C39: % a aplicar
B40: Valor mímino | C40: 2023 | D40: 2024 | E40: 2025 | F40: 2026 | G40: 2027 | H40: 2028 | I40: 2029 | J40: 2030
B41: =IFERROR(EMISIONB!$D$5,"") -> 0 | C41: 0.0315 | D41: 0.0315 | E41: 0.0315 | F41: 0.0315 | G41: 0.0315 | H41: 0.0315 | I41: 0.0315 | J41: 0.0315
B42: =IFERROR(ROUND(EMISIONB!$D$5*1.01,2),"") -> 0 | C42: 0.03281 | D42: 0.03413 | E42: 0.03544 | F42: 0.03676 | G42: 0.03807 | H42: 0.03939 | I42: 0.0407 | J42: 0.04202
B43: =IFERROR(ROUND(EMISIONB!$D$6*1.51,2),"") -> 0 | C43: 0.03575 | D43: 0.04 | E43: 0.04426 | F43: 0.04851 | G43: 0.05276 | H43: 0.05701 | I43: 0.06126 | J43: 0.06552
B44: =IFERROR(ROUND(EMISIONB!$D$6*2.01,2),"") -> 0 | C44: 0.03751 | D44: 0.04353 | E44: 0.04954 | F44: 0.05556 | G44: 0.06157 | H44: 0.06759 | I44: 0.0736 | J44: 0.07962
B45: =IFERROR(ROUND(EMISIONB!$D$6*2.51,2),"") -> 0 | C45: 0.03869 | D45: 0.04588 | E45: 0.05307 | F45: 0.06026 | G45: 0.06745 | H45: 0.07464 | I45: 0.08183 | J45: 0.08902
B46: =IFERROR(ROUND(EMISIONB!$D$6*3.01,2),"") -> 0 | C46: 0.03953 | D46: 0.04756 | E46: 0.05559 | F46: 0.06361 | G46: 0.07164 | H46: 0.07967 | I46: 0.0877 | J46: 0.09573
B47: =IFERROR(ROUND(EMISIONB!$D$6*3.51,2),"") -> 0 | C47: 0.04016 | D47: 0.04882 | E47: 0.05747 | F47: 0.06613 | G47: 0.07479 | H47: 0.08345 | I47: 0.09211 | J47: 0.10077
B48: =IFERROR(ROUND(EMISIONB!$D$6*4.01,2),"") -> 0 | C48: 0.04241 | D48: 0.05331 | E48: 0.06422 | F48: 0.07513 | G48: 0.08603 | H48: 0.09694 | I48: 0.10784 | J48: 0.11875
B51: 2023 | C51: 2
B52: 2024 | C52: 3
B53: 2025 | C53: 4
B54: 2026 | C54: 5
B55: 2027 | C55: 6
B56: 2028 | C56: 7
B57: 2029 | C57: 8
B58: 2030 | C58: 9
B61: Tabla de vacaciones
B62: Mímino | C62: Máximo | D62: Días | F62: Área geográfica | G62: Salario mímino
B63: 0 | C63: 1 | D63: 12 | F63: Zona Libre de la Frontera Norte | G63: 440.87
B64: =C63+0.01 -> 1.01 | C64: =C63+1 -> 2 | D64: =D63+2 -> 14 | F64: Zona del Salario Mínimo General | G64: 315.04
B65: =C64+0.01 -> 2.01 | C65: =C64+1 -> 3 | D65: =D64+2 -> 16
B66: 3.01 | C66: 4 | D66: 18
B67: 4.01 | C67: 5 | D67: 20 | F67: Valor de la UMA | G67: Importe
B68: 5.01 | C68: =C67+5 -> 10 | D68: 22 | F68: Enero | G68: 113.14
B69: 10.01 | C69: =C68+5 -> 15 | D69: 24 | F69: Febrero en adelante | G69: 117.31
B70: 15.01 | C70: 20 | D70: 26
B71: 20.01 | C71: 25 | D71: 28 | F71: Pediodicidad
B72: 25.01 | C72: 30 | D72: 30 | F72: Diario | G72: 1
B73: 30.01 | C73: 35 | D73: 32 | F73: Semanal | G73: 7
B74: 35.01 | C74: 40 | D74: 34 | F74: Catorcenal | G74: 10
B75: 40.01 | C75: 45 | D75: 36 | F75: Quincenal | G75: 14
B76: 45.01 | C76: 50 | D76: 38 | F76: Mensual | G76: 30
B77: 50.01 | C77: 55 | D77: 40
B78: 55.01 | C78: 60 | D78: 42
B79: 60.01 | C79: 65 | D79: 44
B80: 65.01 | C80: 70 | D80: 46
F83: www.acfmsc.com
B87: 1
B88: 2
B89: 3
B90: 4
B91: 5
B92: 6
B93: 7
B94: 8
B95: 9
B96: 10
B97: 11
B98: 12
B99: 13
B100: 14
B101: 15
B102: 16
B103: 17
B104: 18
B105: 19
B106: 20
B107: 21
B108: 22
B109: 23
B110: 24
B111: 25
B112: 26
B113: 27
B114: 28
B115: 29
B116: 30
B117: 31
B133: c_TipoContrato | C133: Descripción
B134: 1 | C134: Contrato de trabajo por tiempo indeterminado
B135: 2 | C135: Contrato de trabajo para obra determinada
B136: 3 | C136: Contrato de trabajo por tiempo determinado
B137: 4 | C137: Contrato de trabajo por temporada
B138: 5 | C138: Contrato de trabajo sujeto a prueba
B139: 6 | C139: Contrato de trabajo con capacitación inicial
B140: 7 | C140: Modalidad de contratación por pago de hora laborada
B141: 8 | C141: Modalidad de trabajo por comisión laboral
B142: 9 | C142: Modalidades de contratación donde no existe relación de trabajo
B143: 10 | C143: Jubilación, pensión, retiro.
B144: 99 | C144: Otro contrato
B147: c_TipoJornada | C147: Descripción
B148: 1 | C148: Diurna
B149: 2 | C149: Nocturna
B150: 3 | C150: Mixta
B151: 4 | C151: Por hora
B152: 5 | C152: Reducida
B153: 6 | C153: Continuada
B154: 7 | C154: Partida
B155: 8 | C155: Por turnos
B156: 99 | C156: Otra Jornada
B158: c_TipoRegimen | C158: Descripción
B159: 2 | C159: Sueldos (Incluye ingresos señalados en la fracción I del artículo 94 de LISR)
B160: 3 | C160: Jubilados
B161: 4 | C161: Pensionados
B162: 5 | C162: Asimilados Miembros Sociedades Cooperativas Produccion
B163: 6 | C163: Asimilados Integrantes Sociedades Asociaciones Civiles
B164: 7 | C164: Asimilados Miembros consejos
B165: 8 | C165: Asimilados comisionistas
B166: 9 | C166: Asimilados Honorarios
B167: 10 | C167: Asimilados acciones
B168: 11 | C168: Asimilados otros
B169: 12 | C169: Jubilados o Pensionados
B170: 13 | C170: Indemnización o Separación
B171: 99 | C171: Otro Regimen
B173: c_RiesgoPuesto | C173: Descripción
B174: 1 | C174: Clase I
B175: 2 | C175: Clase II
B176: 3 | C176: Clase III
B177: 4 | C177: Clase IV
B178: 5 | C178: Clase V
B179: 99 | C179: No aplica
B181: c_PeriodicidadPago | C181: Descripción
B182: 1 | C182: Diario
B183: 2 | C183: Semanal
B184: 3 | C184: Catorcenal
B185: 4 | C185: Quincenal
B186: 5 | C186: Mensual
B187: 6 | C187: Bimestral
B188: 7 | C188: Unidad obra
B189: 8 | C189: Comisión
B190: 9 | C190: Precio alzado
B191: 10 | C191: Decenal
B192: 99 | C192: Otra Periodicidad
B194: c_Estado | C194: c_Pais | D194: Nombre del estado
B195: AGU | C195: MEX | D195: Aguascalientes
B196: BCN | C196: MEX | D196: Baja California
B197: BCS | C197: MEX | D197: Baja California Sur
B198: CAM | C198: MEX | D198: Campeche
B199: CHP | C199: MEX | D199: Chiapas
B200: CHH | C200: MEX | D200: Chihuahua
B201: COA | C201: MEX | D201: Coahuila
B202: COL | C202: MEX | D202: Colima
B203: CMX | C203: MEX | D203: Ciudad de México
B204: DUR | C204: MEX | D204: Durango
B205: GUA | C205: MEX | D205: Guanajuato
B206: GRO | C206: MEX | D206: Guerrero
B207: HID | C207: MEX | D207: Hidalgo
B208: JAL | C208: MEX | D208: Jalisco
B209: MEX | C209: MEX | D209: Estado de México
B210: MIC | C210: MEX | D210: Michoacán
B211: MOR | C211: MEX | D211: Morelos
B212: NAY | C212: MEX | D212: Nayarit
B213: NLE | C213: MEX | D213: Nuevo León
B214: OAX | C214: MEX | D214: Oaxaca
B215: PUE | C215: MEX | D215: Puebla
B216: QUE | C216: MEX | D216: Querétaro
B217: ROO | C217: MEX | D217: Quintana Roo
B218: SLP | C218: MEX | D218: San Luis Potosí
B219: SIN | C219: MEX | D219: Sinaloa
B220: SON | C220: MEX | D220: Sonora
B221: TAB | C221: MEX | D221: Tabasco
B222: TAM | C222: MEX | D222: Tamaulipas
B223: TLA | C223: MEX | D223: Tlaxcala
B224: VER | C224: MEX | D224: Veracruz
B225: YUC | C225: MEX | D225: Yucatán
B226: ZAC | C226: MEX | D226: Zacatecas
B229: Enero
B230: Febrero
B231: Marzo
B232: Abril
B233: Mayo
B234: Junio
B235: Julio
B236: Agosto
B237: Septiembre
B238: Octubre
B239: Noviembre
B240: Diciembre

Sheet CATALOGO (hidden)
B4: c_RiesgoPuesto | C4: Descripción | D4: Fecha inicio de vigencia | E4: Fecha fin de vigencia | H4: c_TipoPercepcion | I4: Descripción | J4: Fecha inicio de vigencia | K4: Fecha fin de vigencia
B5: 1 | C5: Clase I | D5: 2017-01-01 | H5: 1 | I5: Sueldos, Salarios Rayas y Jornales | J5: 2016-11-01
B6: 2 | C6: Clase II | D6: 2017-01-01 | H6: 2 | I6: Gratificación Anual (Aguinaldo) | J6: 2016-11-01
B7: 3 | C7: Clase III | D7: 2017-01-01 | H7: 3 | I7: Participación de los Trabajadores en las Utilidades PTU | J7: 2016-11-01
B8: 4 | C8: Clase IV | D8: 2017-01-01 | H8: 4 | I8: Reembolso de Gastos Médicos Dentales y Hospitalarios | J8: 2016-11-01
B9: 5 | C9: Clase V | D9: 2017-01-01 | H9: 5 | I9: Fondo de Ahorro | J9: 2016-11-01
B10: 99 | C10: No aplica | D10: 2017-08-13 | H10: 6 | I10: Caja de ahorro | J10: 2016-11-01
H11: 9 | I11: Contribuciones a Cargo del Trabajador Pagadas por el Patrón | J11: 2016-11-01
H12: 10 | I12: Premios por puntualidad | J12: 2016-11-01
B13: c_TipoRegimen | C13: Descripción | D13: Fecha inicio de vigencia | E13: Fecha fin de vigencia | H13: 11 | I13: Prima de Seguro de vida | J13: 2016-11-01
B14: 2 | C14: Sueldos | D14: 2017-01-01 | H14: 12 | I14: Seguro de Gastos Médicos Mayores | J14: 2016-11-01
B15: 3 | C15: Jubilados | D15: 2017-01-01 | H15: 13 | I15: Cuotas Sindicales Pagadas por el Patrón | J15: 2016-11-01
B16: 4 | C16: Pensionados | D16: 2017-01-01 | H16: 14 | I16: Subsidios por incapacidad | J16: 2016-11-01
B17: 5 | C17: Asimilados Miembros Sociedades Cooperativas Produccion | D17: 2017-01-01 | H17: 15 | I17: Becas para trabajadores y/o hijos | J17: 2016-11-01
B18: 6 | C18: Asimilados Integrantes Sociedades Asociaciones Civiles | D18: 2017-01-01 | H18: 19 | I18: Horas extra | J18: 2016-11-01
B19: 7 | C19: Asimilados Miembros consejos | D19: 2017-01-01 | H19: 20 | I19: Prima dominical | J19: 2016-11-01
B20: 8 | C20: Asimilados comisionistas | D20: 2017-01-01 | H20: 21 | I20: Prima vacacional | J20: 2016-11-01
B21: 9 | C21: Asimilados Honorarios | D21: 2017-01-01 | H21: 22 | I21: Prima por antigüedad | J21: 2016-11-01
B22: 10 | C22: Asimilados acciones | D22: 2017-01-01 | H22: 23 | I22: Pagos por separación | J22: 2016-11-01
B23: 11 | C23: Asimilados otros | D23: 2017-01-01 | H23: 24 | I23: Seguro de retiro | J23: 2016-11-01
B24: 12 | C24: Jubilados o Pensionados | D24: 2017-03-27 | H24: 25 | I24: Indemnizaciones | J24: 2016-11-01
B25: 13 | C25: Indemnización o Separación | D25: 2018-10-15 | H25: 26 | I25: Reembolso por funeral | J25: 2016-11-01
B26: 99 | C26: Otro Regimen | D26: 2017-01-01 | H26: 27 | I26: Cuotas de seguridad social pagadas por el patrón | J26: 2016-11-01
H27: 28 | I27: Comisiones | J27: 2016-11-01
H28: 29 | I28: Vales de despensa | J28: 2016-11-01
B29: c_TipoContrato | C29: Descripción | H29: 30 | I29: Vales de restaurante | J29: 2016-11-01
B30: 1 | C30: Contrato de trabajo por tiempo indeterminado | H30: 31 | I30: Vales de gasolina | J30: 2016-11-01
B31: 2 | C31: Contrato de trabajo para obra determinada | H31: 32 | I31: Vales de ropa | J31: 2016-11-01
B32: 3 | C32: Contrato de trabajo por tiempo determinado | H32: 33 | I32: Ayuda para renta | J32: 2016-11-01
B33: 4 | C33: Contrato de trabajo por temporada | H33: 34 | I33: Ayuda para artículos escolares | J33: 2016-11-01
B34: 5 | C34: Contrato de trabajo sujeto a prueba | H34: 35 | I34: Ayuda para anteojos | J34: 2016-11-01
B35: 6 | C35: Contrato de trabajo con capacitación inicial | H35: 36 | I35: Ayuda para transporte | J35: 2016-11-01
B36: 7 | C36: Modalidad de contratación por pago de hora laborada | H36: 37 | I36: Ayuda para gastos de funeral | J36: 2016-11-01
B37: 8 | C37: Modalidad de trabajo por comisión laboral | H37: 38 | I37: Otros ingresos por salarios | J37: 2016-11-01
B38: 9 | C38: Modalidades de contratación donde no existe relación de trabajo | H38: 39 | I38: Jubilaciones, pensiones o haberes de retiro | J38: 2016-11-01
B39: 10 | C39: Jubilación, pensión, retiro. | H39: 44 | I39: Jubilaciones, pensiones o haberes de retiro en parcialidades | J39: 2016-11-01
B40: 99 | C40: Otro contrato | H40: 45 | I40: Ingresos en acciones o títulos valor que representan bienes | J40: 2016-11-01
H41: 046 | I41: Ingresos asimilados a salarios | J41: 2016-11-01
H42: 047 | I42: Alimentación | J42: 2016-11-01
B43: c_PeriodicidadPago | C43: Descripción | D43: Fecha inicio de vigencia | E43: Fecha fin de vigencia | H43: 48 | I43: Habitación | J43: 2016-11-01
B44: 1 | C44: Diario | D44: 2016-11-01 | H44: 49 | I44: Premios por asistencia | J44: 2016-11-01
B45: 2 | C45: Semanal | D45: 2016-11-01 | H45: 50 | I45: Viáticos | J45: 2017-01-06
B46: 3 | C46: Catorcenal | D46: 2016-11-01 | H46: 51 | I46: Pagos por gratificaciones, primas, compensaciones, recompensas u otros a extrabajadores derivados de jubilación en parcialidades | J46: 2018-10-15
B47: 4 | C47: Quincenal | D47: 2016-11-01 | H47: 52 | I47: Pagos que se realicen a extrabajadores que obtengan una jubilación en parcialidades derivados de la ejecución de resoluciones judicial o de un laudo | J47: 2018-10-15
B48: 5 | C48: Mensual | D48: 2016-11-01 | H48: 53 | I48: Pagos que se realicen a extrabajadores que obtengan una jubilación en una sola exhibición derivados de la ejecución de resoluciones judicial o de un laudo | J48: 2018-10-15
B49: 6 | C49: Bimestral | D49: 2016-11-01
B50: 7 | C50: Unidad obra | D50: 2016-11-01
B51: 8 | C51: Comisión | D51: 2016-11-01 | H51: c_TipoOtroPago | I51: Descripción | J51: Fecha inicio de vigencia | K51: Fecha fin de vigencia
B52: 9 | C52: Precio alzado | D52: 2016-11-01 | H52: 1 | I52: Reintegro de ISR pagado en exceso (siempre que no haya sido enterado al SAT). | J52: 2017-01-01
B53: 10 | C53: Decenal | D53: 2017-01-19 | H53: 2 | I53: Subsidio para el empleo (efectivamente entregado al trabajador). | J53: 2017-01-01
B54: 99 | C54: Otra Periodicidad | D54: 2016-11-01 | H54: 3 | I54: Viáticos (entregados al trabajador). | J54: 2017-01-01
H55: 4 | I55: Aplicación de saldo a favor por compensación anual. | J55: 2017-01-01
H56: 5 | I56: Reintegro de ISR retenido en exceso de ejercicio anterior (siempre que no haya sido enterado al SAT). | J56: 2017-12-05
B57: c_TipoIncapacidad | C57: Descripción | H57: 999 | I57: Pagos distintos a los listados y que no deben considerarse como ingreso por sueldos, salarios o ingresos asimilados. | J57: 2017-01-01
B58: 1 | C58: Riesgo de trabajo.
B59: 2 | C59: Enfermedad en general.
B60: 3 | C60: Maternidad. | H60: c_TipoDeduccion | I60: Descripción | J60: Fecha inicio de vigencia | K60: Fecha fin de vigencia
H61: 1 | I61: Seguridad social | J61: 2016-11-01
H62: 2 | I62: ISR | J62: 2016-11-01
B63: c_TipoJornada | C63: Descripción | H63: 3 | I63: Aportaciones a retiro, cesantía en edad avanzada y vejez. | J63: 2016-11-01
B64: 1 | C64: Diurna | H64: 4 | I64: Otros | J64: 2016-11-01
B65: 2 | C65: Nocturna | H65: 5 | I65: Aportaciones a Fondo de vivienda | J65: 2016-11-01
B66: 3 | C66: Mixta | H66: 6 | I66: Descuento por incapacidad | J66: 2016-11-01
B67: 4 | C67: Por hora | H67: 7 | I67: Pensión alimenticia | J67: 2016-11-01
B68: 5 | C68: Reducida | H68: 8 | I68: Renta | J68: 2016-11-01
B69: 6 | C69: Continuada | H69: 9 | I69: Préstamos provenientes del Fondo Nacional de la Vivienda para los Trabajadores | J69: 2016-11-01
B70: 7 | C70: Partida | H70: 10 | I70: Pago por crédito de vivienda | J70: 2016-11-01
B71: 8 | C71: Por turnos | H71: 11 | I71: Pago de abonos INFONACOT | J71: 2016-11-01
B72: 99 | C72: Otra Jornada | H72: 12 | I72: Anticipo de salarios | J72: 2016-11-01
H73: 13 | I73: Pagos hechos con exceso al trabajador | J73: 2016-11-01
H74: 14 | I74: Errores | J74: 2016-11-01
B75: c_Estado | C75: c_Pais | D75: Nombre del estado | H75: 15 | I75: Pérdidas | J75: 2016-11-01
B76: AGU | C76: MEX | D76: Aguascalientes | H76: 16 | I76: Averías | J76: 2016-11-01
B77: BCN | C77: MEX | D77: Baja California | H77: 17 | I77: Adquisición de artículos producidos por la empresa o establecimiento | J77: 2016-11-01
B78: BCS | C78: MEX | D78: Baja California Sur | H78: 18 | I78: Cuotas para la constitución y fomento de sociedades cooperativas y de cajas de ahorro | J78: 2016-11-01
B79: CAM | C79: MEX | D79: Campeche | H79: 19 | I79: Cuotas sindicales | J79: 2016-11-01
B80: CHP | C80: MEX | D80: Chiapas | H80: 20 | I80: Ausencia (Ausentismo) | J80: 2016-11-01
B81: CHH | C81: MEX | D81: Chihuahua | H81: 21 | I81: Cuotas obrero patronales | J81: 2016-11-01
B82: COA | C82: MEX | D82: Coahuila | H82: 22 | I82: Impuestos Locales | J82: 2016-11-01
B83: COL | C83: MEX | D83: Colima | H83: 23 | I83: Aportaciones voluntarias | J83: 2016-11-01
B84: DIF | C84: MEX | D84: Ciudad de México | H84: 24 | I84: Ajuste en Gratificación Anual (Aguinaldo) Exento | J84: 2017-01-06
B85: DUR | C85: MEX | D85: Durango | H85: 25 | I85: Ajuste en Gratificación Anual (Aguinaldo) Gravado | J85: 2017-01-06
B86: GUA | C86: MEX | D86: Guanajuato | H86: 26 | I86: Ajuste en Participación de los Trabajadores en las Utilidades PTU Exento | J86: 2017-01-06
B87: GRO | C87: MEX | D87: Guerrero | H87: 27 | I87: Ajuste en Participación de los Trabajadores en las Utilidades PTU Gravado | J87: 2017-01-06
B88: HID | C88: MEX | D88: Hidalgo | H88: 28 | I88: Ajuste en Reembolso de Gastos Médicos Dentales y Hospitalarios Exento | J88: 2017-01-06
B89: JAL | C89: MEX | D89: Jalisco | H89: 29 | I89: Ajuste en Fondo de ahorro Exento | J89: 2017-01-06
B90: MEX | C90: MEX | D90: Estado de México | H90: 30 | I90: Ajuste en Caja de ahorro Exento | J90: 2017-01-06
B91: MIC | C91: MEX | D91: Michoacán | H91: 31 | I91: Ajuste en Contribuciones a Cargo del Trabajador Pagadas por el Patrón Exento | J91: 2017-01-06
B92: MOR | C92: MEX | D92: Morelos | H92: 32 | I92: Ajuste en Premios por puntualidad Gravado | J92: 2017-01-06
B93: NAY | C93: MEX | D93: Nayarit | H93: 33 | I93: Ajuste en Prima de Seguro de vida Exento | J93: 2017-01-06
B94: NLE | C94: MEX | D94: Nuevo León | H94: 34 | I94: Ajuste en Seguro de Gastos Médicos Mayores Exento | J94: 2017-01-06
B95: OAX | C95: MEX | D95: Oaxaca | H95: 35 | I95: Ajuste en Cuotas Sindicales Pagadas por el Patrón Exento | J95: 2017-01-06
B96: PUE | C96: MEX | D96: Puebla | H96: 36 | I96: Ajuste en Subsidios por incapacidad Exento | J96: 2017-01-06
B97: QUE | C97: MEX | D97: Querétaro | H97: 37 | I97: Ajuste en Becas para trabajadores y/o hijos Exento | J97: 2017-01-06
B98: ROO | C98: MEX | D98: Quintana Roo | H98: 38 | I98: Ajuste en Horas extra Exento | J98: 2017-01-06
B99: SLP | C99: MEX | D99: San Luis Potosí | H99: 39 | I99: Ajuste en Horas extra Gravado | J99: 2017-01-06
B100: SIN | C100: MEX | D100: Sinaloa | H100: 40 | I100: Ajuste en Prima dominical Exento | J100: 2017-01-06
B101: SON | C101: MEX | D101: Sonora | H101: 41 | I101: Ajuste en Prima dominical Gravado | J101: 2017-01-06
B102: TAB | C102: MEX | D102: Tabasco | H102: 42 | I102: Ajuste en Prima vacacional Exento | J102: 2017-01-06
B103: TAM | C103: MEX | D103: Tamaulipas | H103: 43 | I103: Ajuste en Prima vacacional Gravado | J103: 2017-01-06
B104: TLA | C104: MEX | D104: Tlaxcala | H104: 44 | I104: Ajuste en Prima por antigüedad Exento | J104: 2017-01-06
B105: VER | C105: MEX | D105: Veracruz | H105: 45 | I105: Ajuste en Prima por antigüedad Gravado | J105: 2017-01-06
B106: YUC | C106: MEX | D106: Yucatán | H106: 46 | I106: Ajuste en Pagos por separación Exento | J106: 2017-01-06
B107: ZAC | C107: MEX | D107: Zacatecas | H107: 47 | I107: Ajuste en Pagos por separación Gravado | J107: 2017-01-06
B108: AL | C108: USA | D108: Alabama | H108: 48 | I108: Ajuste en Seguro de retiro Exento | J108: 2017-01-06
B109: AK | C109: USA | D109: Alaska | H109: 49 | I109: Ajuste en Indemnizaciones Exento | J109: 2017-01-06
B110: AZ | C110: USA | D110: Arizona | H110: 50 | I110: Ajuste en Indemnizaciones Gravado | J110: 2017-01-06
B111: AR | C111: USA | D111: Arkansas | H111: 51 | I111: Ajuste en Reembolso por funeral Exento | J111: 2017-01-06
B112: CA | C112: USA | D112: California | H112: 52 | I112: Ajuste en Cuotas de seguridad social pagadas por el patrón Exento | J112: 2017-01-06
B113: NC | C113: USA | D113: Carolina del Norte | H113: 53 | I113: Ajuste en Comisiones Gravado | J113: 2017-01-06
B114: SC | C114: USA | D114: Carolina del Sur | H114: 54 | I114: Ajuste en Vales de despensa Exento | J114: 2017-01-06
B115: CO | C115: USA | D115: Colorado | H115: 55 | I115: Ajuste en Vales de restaurante Exento | J115: 2017-01-06
B116: CT | C116: USA | D116: Connecticut | H116: 56 | I116: Ajuste en Vales de gasolina Exento | J116: 2017-01-06
B117: ND | C117: USA | D117: Dakota del Norte | H117: 57 | I117: Ajuste en Vales de ropa Exento | J117: 2017-01-06
B118: SD | C118: USA | D118: Dakota del Sur | H118: 58 | I118: Ajuste en Ayuda para renta Exento | J118: 2017-01-06
B119: DE | C119: USA | D119: Delaware | H119: 59 | I119: Ajuste en Ayuda para artículos escolares Exento | J119: 2017-01-06
B120: FL | C120: USA | D120: Florida | H120: 60 | I120: Ajuste en Ayuda para anteojos Exento | J120: 2017-01-06
B121: GA | C121: USA | D121: Georgia | H121: 61 | I121: Ajuste en Ayuda para transporte Exento | J121: 2017-01-06
B122: HI | C122: USA | D122: Hawái | H122: 62 | I122: Ajuste en Ayuda para gastos de funeral Exento | J122: 2017-01-06
B123: ID | C123: USA | D123: Idaho | H123: 63 | I123: Ajuste en Otros ingresos por salarios Exento | J123: 2017-01-06
B124: IL | C124: USA | D124: Illinois | H124: 64 | I124: Ajuste en Otros ingresos por salarios Gravado | J124: 2017-01-06
B125: IN | C125: USA | D125: Indiana | H125: 65 | I125: Ajuste en Jubilaciones, pensiones o haberes de retiro en una sola exhibición Exento | J125: 2018-10-15
B126: IA | C126: USA | D126: Iowa | H126: 66 | I126: Ajuste en Jubilaciones, pensiones o haberes de retiro en una sola exhibición Gravado | J126: 2018-10-15
B127: KS | C127: USA | D127: Kansas | H127: 67 | I127: Ajuste en Pagos por separación Acumulable | J127: 2017-01-06
B128: KY | C128: USA | D128: Kentucky | H128: 68 | I128: Ajuste en Pagos por separación No acumulable | J128: 2017-01-06
B129: LA | C129: USA | D129: Luisiana | H129: 69 | I129: Ajuste en Jubilaciones, pensiones o haberes de retiro en parcialidades Exento | J129: 2018-10-15
B130: ME | C130: USA | D130: Maine | H130: 70 | I130: Ajuste en Jubilaciones, pensiones o haberes de retiro en parcialidades Gravado | J130: 2018-10-15
B131: MD | C131: USA | D131: Maryland | H131: 71 | I131: Ajuste en Subsidio para el empleo (efectivamente entregado al trabajador) | J131: 2017-01-06
B132: MA | C132: USA | D132: Massachusetts | H132: 72 | I132: Ajuste en Ingresos en acciones o títulos valor que representan bienes Exento | J132: 2017-01-06 | K132: 2018-10-14
B133: MI | C133: USA | D133: Míchigan | H133: 73 | I133: Ajuste en Ingresos en acciones o títulos valor que representan bienes Gravado | J133: 2017-01-06
B134: MN | C134: USA | D134: Minnesota | H134: 74 | I134: Ajuste en Alimentación Exento | J134: 2017-01-06
B135: MS | C135: USA | D135: Misisipi | H135: 75 | I135: Ajuste en Alimentación Gravado | J135: 2017-01-06
B136: MO | C136: USA | D136: Misuri | H136: 76 | I136: Ajuste en Habitación Exento | J136: 2017-01-06
B137: MT | C137: USA | D137: Montana | H137: 77 | I137: Ajuste en Habitación Gravado | J137: 2017-01-06
B138: NE | C138: USA | D138: Nebraska | H138: 78 | I138: Ajuste en Premios por asistencia | J138: 2017-01-06
B139: NV | C139: USA | D139: Nevada | H139: 79 | I139: Ajuste en Pagos distintos a los listados y que no deben considerarse como ingreso por sueldos, salarios o ingresos asimilados. | J139: 2017-01-06
B140: NJ | C140: USA | D140: Nueva Jersey | H140: 80 | I140: Ajuste en Viáticos gravados | J140: 2017-01-06
B141: NY | C141: USA | D141: Nueva York | H141: 81 | I141: Ajuste en Viáticos (entregados al trabajador) | J141: 2017-01-06
B142: NH | C142: USA | D142: Nuevo Hampshire | H142: 082 | I142: Ajuste en Fondo de ahorro Gravado | J142: 2017-01-06
B143: NM | C143: USA | D143: Nuevo México | H143: 083 | I143: Ajuste en Caja de ahorro Gravado | J143: 2017-01-06
B144: OH | C144: USA | D144: Ohio | H144: 084 | I144: Ajuste en Prima de Seguro de vida Gravado | J144: 2017-01-06
B145: OK | C145: USA | D145: Oklahoma | H145: 085 | I145: Ajuste en Seguro de Gastos Médicos Mayores Gravado | J145: 2017-01-06
B146: OR | C146: USA | D146: Oregón | H146: 086 | I146: Ajuste en Subsidios por incapacidad Gravado | J146: 2017-01-06
B147: PA | C147: USA | D147: Pensilvania | H147: 087 | I147: Ajuste en Becas para trabajadores y/o hijos Gravado | J147: 2017-01-06
B148: RI | C148: USA | D148: Rhode Island | H148: 088 | I148: Ajuste en Seguro de retiro Gravado | J148: 2017-01-06
B149: TN | C149: USA | D149: Tennessee | H149: 089 | I149: Ajuste en Vales de despensa Gravado | J149: 2017-01-06
B150: TX | C150: USA | D150: Texas | H150: 090 | I150: Ajuste en Vales de restaurante Gravado | J150: 2017-01-06
B151: UT | C151: USA | D151: Utah | H151: 091 | I151: Ajuste en Vales de gasolina Gravado | J151: 2017-01-06
B152: VT | C152: USA | D152: Vermont | H152: 092 | I152: Ajuste en Vales de ropa Gravado | J152: 2017-01-06
B153: VA | C153: USA | D153: Virginia | H153: 093 | I153: Ajuste en Ayuda para renta Gravado | J153: 2017-01-06
B154: WV | C154: USA | D154: Virginia Occidental | H154: 094 | I154: Ajuste en Ayuda para artículos escolares Gravado | J154: 2017-01-06
B155: WA | C155: USA | D155: Washington | H155: 095 | I155: Ajuste en Ayuda para anteojos Gravado | J155: 2017-01-06
B156: WI | C156: USA | D156: Wisconsin | H156: 096 | I156: Ajuste en Ayuda para transporte Gravado | J156: 2017-01-06
B157: WY | C157: USA | D157: Wyoming | H157: 097 | I157: Ajuste en Ayuda para gastos de funeral Gravado | J157: 2017-01-06
B158: ON | C158: CAN | D158: Ontario | H158: 098 | I158: Ajuste a ingresos asimilados a salarios gravados | J158: 2017-01-06
B159: QC | C159: CAN | D159: Quebec | H159: 099 | I159: Ajuste a ingresos por sueldos y salarios gravados | J159: 2017-01-06
B160: NS | C160: CAN | D160: Nueva Escocia | H160: 100 | I160: Ajuste en Viáticos exentos | J160: 2017-01-06
B161: NB | C161: CAN | D161: Nuevo Brunswick | H161: 101 | I161: ISR Retenido de ejercicio anterior | J161: 2017-12-05
B162: MB | C162: CAN | D162: Manitoba | H162: 102 | I162: Ajuste a pagos por gratificaciones, primas, compensaciones, recompensas u otros a extrabajadores derivados de jubilación en parcialidades, gravados | J162: 2018-10-15
B163: BC | C163: CAN | D163: Columbia Británica | H163: 103 | I163: Ajuste a pagos que se realicen a extrabajadores que obtengan una jubilación en parcialidades derivados de la ejecución de una resolución judicial o de un laudo gravados | J163: 2018-10-15
B164: PE | C164: CAN | D164: Isla del Príncipe Eduardo | H164: 104 | I164: Ajuste a pagos que se realicen a extrabajadores que obtengan una jubilación en parcialidades derivados de la ejecución de una resolución judicial o de un laudo exentos | J164: 2018-10-15
B165: SK | C165: CAN | D165: Saskatchewan | H165: 105 | I165: Ajuste a pagos que se realicen a extrabajadores que obtengan una jubilación en una sola exhibición derivados de la ejecución de una resolución judicial o de un laudo gravados | J165: 2018-10-15
B166: AB | C166: CAN | D166: Alberta | H166: 106 | I166: Ajuste a pagos que se realicen a extrabajadores que obtengan una jubilación en una sola exhibición derivados de la ejecución de una resolución judicial o de un laudo exentos | J166: 2018-10-15
B167: NL | C167: CAN | D167: Terranova y Labrador
B168: NT | C168: CAN | D168: Territorios del Noroeste
B169: YT | C169: CAN | D169: Yukón
B170: UN | C170: CAN | D170: Nunavut
B185: c_TipoPercepcion | C185: Descripción | D185: Gravado | E185: Exento | F185: Régimen | G185: Régimen consula | H185: c_TipoRegimen | I185: Descripción
B186: 1 | C186: Sueldos, Salarios Rayas y Jornales | D186: a | E186: r | F186: 2 | G186: =F186-B186 -> 1 | H186: 2 | I186: Sueldos (Incluye ingresos señalados en la fracción I del artículo 94 de LISR) | J186: 2
B187: 2 | C187: Gratificación Anual (Aguinaldo) | D187: a | E187: a | F187: 2 | G187: =F187-B187 -> 0 | H187: 3 | I187: Jubilados | J187: 3412
B188: 3 | C188: Participación de los Trabajadores en las Utilidades PTU | D188: a | E188: a | F188: 2 | G188: -1 | H188: 4 | I188: Pensionados | J188: 3412
B189: 4 | C189: Reembolso de Gastos Médicos Dentales y Hospitalarios | D189: a | E189: a | F189: 2 | G189: -2 | H189: 5 | I189: Asimilados Miembros Sociedades Cooperativas Produccion | J189: 567891011
B190: 5 | C190: Fondo de Ahorro | D190: a | E190: a | F190: 2 | G190: -3 | H190: 6 | I190: Asimilados Integrantes Sociedades Asociaciones Civiles | J190: 567891011
B191: 6 | C191: Caja de ahorro | D191: a | E191: a | F191: 2 | G191: -4 | H191: 7 | I191: Asimilados Miembros consejos | J191: 567891011
B192: 9 | C192: Contribuciones a Cargo del Trabajador Pagadas por el Patrón | D192: a | E192: r | F192: 2 | G192: -7 | H192: 8 | I192: Asimilados comisionistas | J192: 567891011
B193: 10 | C193: Premios por puntualidad | D193: a | E193: r | F193: 2 | G193: -8 | H193: 9 | I193: Asimilados Honorarios | J193: 567891011
B194: 11 | C194: Prima de Seguro de vida | D194: a | E194: a | F194: 2 | G194: -9 | H194: 10 | I194: Asimilados acciones | J194: 567891011
B195: 12 | C195: Seguro de Gastos Médicos Mayores | D195: a | E195: a | F195: 2 | G195: -10 | H195: 11 | I195: Asimilados otros | J195: 567891011
B196: 13 | C196: Cuotas Sindicales Pagadas por el Patrón | D196: a | E196: a | F196: 2 | G196: -11 | H196: 12 | I196: Jubilados o Pensionados | J196: 3412
B197: 14 | C197: Subsidios por incapacidad | D197: a | E197: a | F197: 2 | G197: -12 | H197: 13 | I197: Indemnización o Separación | J197: 13
B198: 15 | C198: Becas para trabajadores y/o hijos | D198: a | E198: a | F198: 2 | G198: -13 | H198: 99 | I198: Otro Regimen | J198: 99
B199: 19 | C199: Horas extra | D199: a | E199: a | F199: 2 | G199: -17
B200: 20 | C200: Prima dominical | D200: a | E200: a | F200: 2 | G200: -18
B201: 21 | C201: Prima vacacional | D201: a | E201: a | F201: 2 | G201: -19
B202: 24 | C202: Seguro de retiro | D202: a | E202: a | F202: 2 | G202: -22
B203: 26 | C203: Reembolso por funeral | D203: a | E203: a | F203: 2 | G203: -24
B204: 27 | C204: Cuotas de seguridad social pagadas por el patrón | D204: r | E204: a | F204: 2 | G204: -25
B205: 28 | C205: Comisiones | D205: a | E205: r | F205: 2 | G205: -26
B206: 29 | C206: Vales de despensa | D206: a | E206: a | F206: 2 | G206: -27
B207: 30 | C207: Vales de restaurante | D207: a | E207: a | F207: 2 | G207: -28
B208: 31 | C208: Vales de gasolina | D208: a | E208: a | F208: 2 | G208: -29
B209: 32 | C209: Vales de ropa | D209: a | E209: a | F209: 2 | G209: -30
B210: 33 | C210: Ayuda para renta | D210: a | E210: a | F210: 2 | G210: -31
B211: 34 | C211: Ayuda para artículos escolares | D211: a | E211: a | F211: 2 | G211: -32
B212: 35 | C212: Ayuda para anteojos | D212: a | E212: a | F212: 2 | G212: -33
B213: 36 | C213: Ayuda para transporte | D213: a | E213: a | F213: 2 | G213: -34
B214: 37 | C214: Ayuda para gastos de funeral | D214: a | E214: a | F214: 2 | G214: -35
B215: 38 | C215: Otros ingresos por salarios | D215: a | E215: a | F215: 2 | G215: -36
B216: 47 | C216: Alimentación diferentes a los establecidos en el Art 94 último párrafo LISR | D216: a | E216: a | F216: 2 | G216: -45
B217: 48 | C217: Habitación | D217: a | E217: a | F217: 2 | G217: -46
... 12 more rows

Sheet c_Estado (hidden)
A1: Catálogo de estados.
A2: Versión CFDI | B2: Versión catálogo | C2: Revisión catálogo | D2: Fecha publicación de catálogo | E2: Fecha inicio de vigencia del catálogo | F2: Fecha fin de vigencia del catálogo
A3: 4 | B3: 1 | C3: 0 | D3: 0 | E3: 2022-01-01
A5: c_Estado | B5: c_Pais | C5: Nombre del estado | D5: Fecha inicio de vigencia | E5: Fecha fin de vigencia
A6: AGU | B6: MEX | C6: Aguascalientes | D6: 2022-01-01
A7: BCN | B7: MEX | C7: Baja California | D7: 2022-01-01
A8: BCS | B8: MEX | C8: Baja California Sur | D8: 2022-01-01
A9: CAM | B9: MEX | C9: Campeche | D9: 2022-01-01
A10: CHP | B10: MEX | C10: Chiapas | D10: 2022-01-01
A11: CHH | B11: MEX | C11: Chihuahua | D11: 2022-01-01
A12: COA | B12: MEX | C12: Coahuila | D12: 2022-01-01
A13: COL | B13: MEX | C13: Colima | D13: 2022-01-01
A14: CMX | B14: MEX | C14: Ciudad de México | D14: 2022-01-01
A15: DUR | B15: MEX | C15: Durango | D15: 2022-01-01
A16: GUA | B16: MEX | C16: Guanajuato | D16: 2022-01-01
A17: GRO | B17: MEX | C17: Guerrero | D17: 2022-01-01
A18: HID | B18: MEX | C18: Hidalgo | D18: 2022-01-01
A19: JAL | B19: MEX | C19: Jalisco | D19: 2022-01-01
A20: MEX | B20: MEX | C20: Estado de México | D20: 2022-01-01
A21: MIC | B21: MEX | C21: Michoacán | D21: 2022-01-01
A22: MOR | B22: MEX | C22: Morelos | D22: 2022-01-01
A23: NAY | B23: MEX | C23: Nayarit | D23: 2022-01-01
A24: NLE | B24: MEX | C24: Nuevo León | D24: 2022-01-01
A25: OAX | B25: MEX | C25: Oaxaca | D25: 2022-01-01
A26: PUE | B26: MEX | C26: Puebla | D26: 2022-01-01
A27: QUE | B27: MEX | C27: Querétaro | D27: 2022-01-01
A28: ROO | B28: MEX | C28: Quintana Roo | D28: 2022-01-01
A29: SLP | B29: MEX | C29: San Luis Potosí | D29: 2022-01-01
A30: SIN | B30: MEX | C30: Sinaloa | D30: 2022-01-01
A31: SON | B31: MEX | C31: Sonora | D31: 2022-01-01
A32: TAB | B32: MEX | C32: Tabasco | D32: 2022-01-01
A33: TAM | B33: MEX | C33: Tamaulipas | D33: 2022-01-01
A34: TLA | B34: MEX | C34: Tlaxcala | D34: 2022-01-01
A35: VER | B35: MEX | C35: Veracruz | D35: 2022-01-01
A36: YUC | B36: MEX | C36: Yucatán | D36: 2022-01-01
A37: ZAC | B37: MEX | C37: Zacatecas | D37: 2022-01-01
A38: AL | B38: USA | C38: Alabama | D38: 2022-01-01
A39: AK | B39: USA | C39: Alaska | D39: 2022-01-01
A40: AZ | B40: USA | C40: Arizona | D40: 2022-01-01
A41: AR | B41: USA | C41: Arkansas | D41: 2022-01-01
A42: CA | B42: USA | C42: California | D42: 2022-01-01
A43: NC | B43: USA | C43: Carolina del Norte | D43: 2022-01-01
A44: SC | B44: USA | C44: Carolina del Sur | D44: 2022-01-01
A45: CO | B45: USA | C45: Colorado | D45: 2022-01-01
A46: CT | B46: USA | C46: Connecticut | D46: 2022-01-01
A47: ND | B47: USA | C47: Dakota del Norte | D47: 2022-01-01
A48: SD | B48: USA | C48: Dakota del Sur | D48: 2022-01-01
A49: DE | B49: USA | C49: Delaware | D49: 2022-01-01
A50: FL | B50: USA | C50: Florida | D50: 2022-01-01
A51: GA | B51: USA | C51: Georgia | D51: 2022-01-01
A52: HI | B52: USA | C52: Hawái | D52: 2022-01-01
A53: ID | B53: USA | C53: Idaho | D53: 2022-01-01
A54: IL | B54: USA | C54: Illinois | D54: 2022-01-01
A55: IN | B55: USA | C55: Indiana | D55: 2022-01-01
A56: IA | B56: USA | C56: Iowa | D56: 2022-01-01
A57: KS | B57: USA | C57: Kansas | D57: 2022-01-01
A58: KY | B58: USA | C58: Kentucky | D58: 2022-01-01
A59: LA | B59: USA | C59: Luisiana | D59: 2022-01-01
A60: ME | B60: USA | C60: Maine | D60: 2022-01-01
A61: MD | B61: USA | C61: Maryland | D61: 2022-01-01
A62: MA | B62: USA | C62: Massachusetts | D62: 2022-01-01
A63: MI | B63: USA | C63: Míchigan | D63: 2022-01-01
A64: MN | B64: USA | C64: Minnesota | D64: 2022-01-01
A65: MS | B65: USA | C65: Misisipi | D65: 2022-01-01
A66: MO | B66: USA | C66: Misuri | D66: 2022-01-01
A67: MT | B67: USA | C67: Montana | D67: 2022-01-01
A68: NE | B68: USA | C68: Nebraska | D68: 2022-01-01
A69: NV | B69: USA | C69: Nevada | D69: 2022-01-01
A70: NJ | B70: USA | C70: Nueva Jersey | D70: 2022-01-01
A71: NY | B71: USA | C71: Nueva York | D71: 2022-01-01
A72: NH | B72: USA | C72: Nuevo Hampshire | D72: 2022-01-01
A73: NM | B73: USA | C73: Nuevo México | D73: 2022-01-01
A74: OH | B74: USA | C74: Ohio | D74: 2022-01-01
A75: OK | B75: USA | C75: Oklahoma | D75: 2022-01-01
A76: OR | B76: USA | C76: Oregón | D76: 2022-01-01
A77: PA | B77: USA | C77: Pensilvania | D77: 2022-01-01
A78: RI | B78: USA | C78: Rhode Island | D78: 2022-01-01
A79: TN | B79: USA | C79: Tennessee | D79: 2022-01-01
A80: TX | B80: USA | C80: Texas | D80: 2022-01-01
A81: UT | B81: USA | C81: Utah | D81: 2022-01-01
A82: VT | B82: USA | C82: Vermont | D82: 2022-01-01
A83: VA | B83: USA | C83: Virginia | D83: 2022-01-01
A84: WV | B84: USA | C84: Virginia Occidental | D84: 2022-01-01
A85: WA | B85: USA | C85: Washington | D85: 2022-01-01
A86: WI | B86: USA | C86: Wisconsin | D86: 2022-01-01
A87: WY | B87: USA | C87: Wyoming | D87: 2022-01-01
A88: ON | B88: CAN | C88: Ontario | D88: 2022-01-01
A89: QC | B89: CAN | C89: Quebec | D89: 2022-01-01
A90: NS | B90: CAN | C90: Nueva Escocia | D90: 2022-01-01
A91: NB | B91: CAN | C91: Nuevo Brunswick | D91: 2022-01-01
A92: MB | B92: CAN | C92: Manitoba | D92: 2022-01-01
A93: BC | B93: CAN | C93: Columbia Británica | D93: 2022-01-01
A94: PE | B94: CAN | C94: Isla del Príncipe Eduardo | D94: 2022-01-01
A95: SK | B95: CAN | C95: Saskatchewan | D95: 2022-01-01
A96: AB | B96: CAN | C96: Alberta | D96: 2022-01-01
A97: NL | B97: CAN | C97: Terranova y Labrador | D97: 2022-01-01
A98: NT | B98: CAN | C98: Territorios del Noroeste | D98: 2022-01-01
A99: YT | B99: CAN | C99: Yukón | D99: 2022-01-01
A100: UN | B100: CAN | C100: Nunavut | D100: 2022-01-01
